Workbook

Sheet Tav_Art.3
A1: AMBITI DI INTERVENTO | B1: Assegnazione FSC 21-27 | E1: Cofinanziamenti | J1: Ammontare complessivo investimenti | K1: Numero interventi/ linee di azione
B2: Risorse FSC 21-27 (ass. ordinaria) | C2: Risorse FSC 21-27 (Anticipazione) (1) | D2: Totale Assegnazione FSC 21-27 | E2: FdR L. 183/87 POC 14-20 | F2: Altre Risorse Ordinarie Regionali e Locali | G2: Altre Risorse Ordinarie Nazionali | H2: Privati | I2: Totale Co- finanziamento con altre risorse
A3: Competitività Imprese | B3: 43,944,791.09 | D3: =SUM(B3:C3) -> 43,944,791.09 | G3: 150,000.00 | I3: =SUM(E3:H3) -> 150,000.00 | J3: =I3+D3 -> 44,094,791.09 | K3: 52
A4: Ambiente e risorse naturali | B4: 21,750,066.19 | C4: 68,257,242.79 | D4: =SUM(B4:C4) -> 90,007,308.98 | G4: 28,330,723.98 | I4: =SUM(E4:H4) -> 28,330,723.98 | J4: =I4+D4 -> 118,338,032.96 | K4: 68
A5: Cultura | B5: 29,901,548.79 | D5: 29,901,548.79 | J5: 29,901,548.79 | K5: 10
A6: Trasporti e mobilità | B6: 700,683,187.65 | C6: 103,949,000.00 | D6: 804,632,187.65 | F6: 27,000,000.00 | G6: 1,146,624,068.13 | H6: 542,641.55 | I6: =SUM(E6:H6) -> 1,174,166,709.68 | J6: 1,978,798,897.33 | K6: 68
A7: Riqualificazione urbana | B7: 11,642,866.84 | C7: 18,850,000.00 | D7: 30,492,866.84 | J7: 30,492,866.84 | K7: 16
A8: Sociale e salute | B8: 5,750,000.00 | D8: 5,750,000.00 | J8: 5,750,000.00 | K8: 6
A9: Istruzione e formazione | B9: 1,405,000.00 | D9: 1,405,000.00 | J9: 1,405,000.00 | K9: 2
A10: Capacità amministrativa | C10: 1,185,400.80 | D10: 1,185,400.80 | J10: 1,185,400.80 | K10: 1
A11: Totale Ambiti di Intervento | B11: =SUM(B3:B10) -> 815,077,460.56 | C11: =SUM(C3:C10) -> 192,241,643.59 | D11: =SUM(D3:D10) -> 1,007,319,104.15 | E11: =SUM(E3:E10) -> 0.00 | F11: 27,000,000.00 | G11: 1,175,104,792.11 | H11: 542,641.55 | I11: 1,202,647,433.66 | J11: =SUM(J3:J10) -> 2,209,966,537.81 | K11: =SUM(K3:K10) -> 223
A12: Cofinanziamento PR (ove applicabile) | B12: 205,670,499.95 | D12: 205,670,499.95
A13: Totale Assegnazione FSC 21-27 | B13: =SUM(B11:B12) -> 1,020,747,960.51 | C13: =SUM(C11:C12) -> 192,241,643.59 | D13: =SUM(D11:D12) -> 1,212,989,604.10
A14: (1) Risorse già assegnate: anticipazioni disposte con delibere CIPESS; assegnate con provvedimenti di legge; ecc. - Include anche le risorse assegnate ex Delibera 79/2021 e riprogrammate

Sheet All_A1 ORD
A1: Accordo per la Coesione Governo - Regione Lazio Allegato A1 - Programma di interventi e linee di azione con cronoprogramma procedurale (solo quota FSC 21-27 ordinaria)
A2: Valori in euro
J3: PROGRAMMAZIONE | L3: PROGETTAZIONE | N3: ESECUZIONE
A4: ID | B4: AMMINISTRAZIONE | C4: AREA TEMATICA | D4: LINEA DI INTERVENTO | E4: CUP | F4: TITOLO | G4: COSTO TOTALE | H4: IMPORTO RICHIESTO FSC 21-27 | I4: COFINANZIAMENTO CON ALTRE RISORSE | J4: PREVISIONE INIZIO | K4: PREVISIONE FINE | L4: PREVISIONE INIZIO | M4: PREVISIONE FINE | N4: PREVISIONE INIZIO | O4: PREVISIONE FINE
A5: FSCRI_RI_112 | B5: RFI S.P.A. | C5: 07.TRASPORTI E MOBILITÀ | D5: 07.02 TRASPORTO FERROVIARIO | E5: F54J22000250002 | F5: FERROVIA ROMA-VITERBO - NUOVO IMPIANTO DI SEGNALAMENTO DI TERRA ERTMS-L2 | G5: 160,000,000.00 € | H5: 160,000,000.00 € | J5: 2_SEMESTRE_2023 | K5: 1_SEMESTRE_2024 | L5: 1_SEMESTRE_2025 | M5: 2_SEMESTRE_2025 | N5: 2_SEMESTRE_2025 | O5: 2_SEMESTRE_2031
A6: FSCRI_RI_116 | B6: ASTRAL S.P.A. | C6: 07.TRASPORTI E MOBILITÀ | D6: 07.02 TRASPORTO FERROVIARIO | E6: F74F08000030009 | F6: EX CONCESSE RV (ADEGUAMENTO PREZZI) - OPERE PER IL RADDOPPIO DELLA TRATTA RIANO-CASTELNUOVO-MORLUPO - II tranche (*) | G6: 165,706,067.13 € | H6: 12,538,419.72 € | I6: 153,167,647.41 € | J6: 2_SEMESTRE_2024 | K6: 1_SEMESTRE_2025 | L6: 1_SEMESTRE_2025 | M6: 2_SEMESTRE_2025 | N6: 1_SEMESTRE_2026 | O6: 2_SEMESTRE_2027
A7: FSCRI_RI_119 | B7: REGIONE LAZIO | C7: 07.TRASPORTI E MOBILITÀ | D7: 07.02 TRASPORTO FERROVIARIO | E7: F70B18000000003 | F7: FERROVIA ROMA-VITERBO - IMPIANTO DI SEGNALAMENTO TRAIN STOP A BORDO DEI NUOVI TRENI | G7: 6,300,000.00 € | H7: 6,300,000.00 € | J7: 2_SEMESTRE_2024 | K7: 1_SEMESTRE_2025 | L7: 1_SEMESTRE_2025 | M7: 1_SEMESTRE_2026 | N7: 2_SEMESTRE_2026 | O7: 2_SEMESTRE_2029
A8: FSCRI_RI_128 | B8: ASTRAL S.P.A. | C8: 07.TRASPORTI E MOBILITÀ | D8: 07.02 TRASPORTO FERROVIARIO | E8: C71G22000060006 | F8: EX CONCESSE RV (ADEGUAMENTO PREZZI) - OPERE PER LA PREDISPOSIZIONE RADDOPPIO TRATTA MONTEBELLO-RIANO | G8: 27,607,995.05 € | H8: 2,599,756.05 € | I8: 25,008,239.00 € | J8: 2_SEMESTRE_2023 | K8: 1_SEMESTRE_2024 | L8: 1_SEMESTRE_2025 | M8: 1_SEMESTRE_2025 | N8: 2_SEMESTRE_2025 | O8: 1_SEMESTRE_2027
A9: FSCRI_RI_132 | B9: REGIONE LAZIO | C9: 07.TRASPORTI E MOBILITÀ | D9: 07.02 TRASPORTO FERROVIARIO | E9: F70B18000000003 | F9: FERROVIA ROMA-VITERBO - IMPIANTI DI SEGNALAMENTO ERTMS-L2 A BORDO DEI NUOVI TRENI | G9: 16,200,000.00 € | H9: 16,200,000.00 € | J9: 2_SEMESTRE_2024 | K9: 1_SEMESTRE_2025 | L9: 2_SEMESTRE_2025 | M9: 1_SEMESTRE_2026 | N9: 2_SEMESTRE_2026 | O9: 2_SEMESTRE_2030
A10: FSCRI_RI_134 | B10: ASTRAL S.P.A. | C10: 07.TRASPORTI E MOBILITÀ | D10: 07.02 TRASPORTO FERROVIARIO | E10: I89B09000100002 | F10: EX CONCESSE RV (ADEGUAMENTO PREZZI) - RADDOPPIO TRATTA MONTEBELLO - RIANO | G10: 71,382,998.85 € | H10: 9,158,813.85 € | I10: 62,224,185.00 € | J10: 2_SEMESTRE_2023 | K10: 1_SEMESTRE_2024 | L10: 1_SEMESTRE_2026 | M10: 1_SEMESTRE_2026 | N10: 1_SEMESTRE_2026 | O10: 1_SEMESTRE_2028
A11: FSCRI_RI_139 | B11: REGIONE LAZIO | C11: 07.TRASPORTI E MOBILITÀ | D11: 07.02 TRASPORTO FERROVIARIO | E11: F70B18000000003 | F11: FERROVIA ROMA-VITERBO - IMPIANTI DI SEGNALAMENTO ERTMS-L2 A BORDO DEI TRENI ESISTENTI | G11: 6,400,000.00 € | H11: 6,400,000.00 € | J11: 2_SEMESTRE_2023 | K11: 1_SEMESTRE_2024 | L11: 1_SEMESTRE_2026 | M11: 2_SEMESTRE_2026 | N11: 2_SEMESTRE_2026 | O11: 2_SEMESTRE_2028
A12: FSCRI_RI_144 | B12: ASTRAL S.P.A. | C12: 07.TRASPORTI E MOBILITÀ | D12: 07.02 TRASPORTO FERROVIARIO | E12: I81C06000070002 | F12: EX CONCESSE RL (VARIANTE E ADEGUAMENTO PREZZI) - STAZIONE ACILIA SUD E FABBRICATO VIAGGIATORI TOR DI VALLE | G12: 11,979,980.22 € | H12: 3,379,980.22 € | I12: 8,600,000.00 € | J12: 2_SEMESTRE_2024 | K12: 1_SEMESTRE_2025 | L12: 1_SEMESTRE_2025 | M12: 2_SEMESTRE_2025 | N12: 1_SEMESTRE_2026 | O12: 2_SEMESTRE_2026
A13: FSCRI_RI_157 | B13: RFI S.P.A. | C13: 07.TRASPORTI E MOBILITÀ | D13: 07.02 TRASPORTO FERROVIARIO | E13: J87F19000700001 | F13: EX CONCESSE RL (ADEGUAMENTO PREZZI) - LAVORI TECNOLOGICI | G13: 100,991,476.00 € | H13: 26,991,476.00 € | I13: 74,000,000.00 € | J13: 2_SEMESTRE_2024 | K13: 1_SEMESTRE_2025 | L13: 2_SEMESTRE_2025 | M13: 2_SEMESTRE_2025 | N13: 1_SEMESTRE_2026 | O13: 2_SEMESTRE_2027
A14: FSCRI_RI_158 | B14: ASTRAL S.P.A. | C14: 07.TRASPORTI E MOBILITÀ | D14: 07.02 TRASPORTO FERROVIARIO | E14: C87D24000040001 | F14: FERROVIA ROMA-VITERBO - RINNOVO TE TRATTA EXTRAURBANA CATALANO - VITERBO | G14: 33,000,000.00 € | H14: 33,000,000.00 € | J14: 2_SEMESTRE_2023 | K14: 1_SEMESTRE_2024 | L14: 1_SEMESTRE_2025 | M14: 2_SEMESTRE_2025 | N14: 1_SEMESTRE_2026 | O14: 2_SEMESTRE_2031
A15: FSCRI_RI_159 | B15: ASTRAL S.P.A. | C15: 07.TRASPORTI E MOBILITÀ | D15: 07.02 TRASPORTO FERROVIARIO | E15: C87D22000050002 | F15: EX CONCESSE RL (ADEGUAMENTO PREZZI) - RIQUALIFICAZIONE STAZIONE DI CASTEL FUSANO | G15: 1,584,018.27 € | H15: 121,799.27 € | I15: 1,462,219.00 € | J15: 2_SEMESTRE_2024 | K15: 1_SEMESTRE_2025 | L15: 1_SEMESTRE_2025 | M15: 1_SEMESTRE_2025 | N15: 2_SEMESTRE_2025 | O15: 2_SEMESTRE_2025
A16: FSCRI_RI_161 | B16: ASTRAL S.P.A. | C16: 07.TRASPORTI E MOBILITÀ | D16: 07.02 TRASPORTO FERROVIARIO | E16: C77D24000000001 | F16: FERROVIA ROMA-VITERBO - POTENZIAMENTO ALIMENTAZIONE ELETTRICA | G16: 12,000,000.00 € | H16: 12,000,000.00 € | J16: 2_SEMESTRE_2023 | K16: 1_SEMESTRE_2024 | L16: 1_SEMESTRE_2025 | M16: 2_SEMESTRE_2025 | N16: 1_SEMESTRE_2026 | O16: 2_SEMESTRE_2028
A17: FSCRI_RI_162 | B17: ASTRAL S.P.A. | C17: 07.TRASPORTI E MOBILITÀ | D17: 07.02 TRASPORTO FERROVIARIO | E17: C87D24000050001 | F17: FERROVIA ROMA-VITERBO - RINNOVO ARMAMENTO NELLA GALLERIA FLAMINIO - ACQUA ACETOSA | G17: 16,000,000.00 € | H17: 16,000,000.00 € | J17: 2_SEMESTRE_2023 | K17: 1_SEMESTRE_2024 | L17: 1_SEMESTRE_2025 | M17: 2_SEMESTRE_2025 | N17: 1_SEMESTRE_2026 | O17: 2_SEMESTRE_2029
A18: FSCRI_RI_163 | B18: ASTRAL S.P.A. | C18: 07.TRASPORTI E MOBILITÀ | D18: 07.02 TRASPORTO FERROVIARIO | E18: C77D24000010001 | F18: FERROVIA ROMA-VITERBO - RINNOVO ARMAMENTO TRATTA URBANA | G18: 12,000,000.00 € | H18: 12,000,000.00 € | J18: 2_SEMESTRE_2023 | K18: 1_SEMESTRE_2024 | L18: 1_SEMESTRE_2025 | M18: 2_SEMESTRE_2025 | N18: 1_SEMESTRE_2026 | O18: 2_SEMESTRE_2028
A19: FSCRI_RI_164 | B19: ASTRAL S.P.A. | C19: 07.TRASPORTI E MOBILITÀ | D19: 07.02 TRASPORTO FERROVIARIO | E19: C77D24000020001 | F19: FERROVIA ROMA-VITERBO - RINNOVO ARMAMENTO TRATTA EXTRAURBANA | G19: 20,000,000.00 € | H19: 20,000,000.00 € | J19: 2_SEMESTRE_2023 | K19: 1_SEMESTRE_2024 | L19: 1_SEMESTRE_2025 | M19: 2_SEMESTRE_2025 | N19: 1_SEMESTRE_2026 | O19: 2_SEMESTRE_2028
A20: FSCRI_RI_165 | B20: ASTRAL S.P.A. | C20: 07.TRASPORTI E MOBILITÀ | D20: 07.02 TRASPORTO FERROVIARIO | E20: C87D24000060001 | F20: FERROVIA ROMA-VITERBO - ADEGUAMENTO NORMATIVO GALLERIA P.LE FLAMINIO - ACQUA ACETOSA | G20: 10,000,000.00 € | H20: 10,000,000.00 € | J20: 2_SEMESTRE_2023 | K20: 1_SEMESTRE_2024 | L20: 2_SEMESTRE_2024 | M20: 1_SEMESTRE_2025 | N20: 1_SEMESTRE_2025 | O20: 2_SEMESTRE_2029
A21: FSCRI_RI_166 | B21: ASTRAL S.P.A. | C21: 07.TRASPORTI E MOBILITÀ | D21: 07.02 TRASPORTO FERROVIARIO | E21: C87D24000070001 | F21: FERROVIA ROMA-VITERBO - ALZAMENTO BANCHINA P.LE FLAMINIO | G21: 2,000,000.00 € | H21: 2,000,000.00 € | J21: 2_SEMESTRE_2023 | K21: 1_SEMESTRE_2024 | L21: 2_SEMESTRE_2024 | M21: 1_SEMESTRE_2025 | N21: 1_SEMESTRE_2025 | O21: 2_SEMESTRE_2026
A22: FSCRI_RI_167 | B22: ASTRAL S.P.A. | C22: 07.TRASPORTI E MOBILITÀ | D22: 07.02 TRASPORTO FERROVIARIO | E22: C87D24000080001 | F22: FERROVIA ROMA-VITERBO - MANUTENZIONE STRAORDINARIA IMPIANTI DI TRASLO ELEVAZIONE | G22: 2,000,000.00 € | H22: 2,000,000.00 € | J22: 2_SEMESTRE_2023 | K22: 1_SEMESTRE_2024 | L22: 2_SEMESTRE_2024 | M22: 1_SEMESTRE_2025 | N22: 1_SEMESTRE_2025 | O22: 2_SEMESTRE_2027
A23: FSCRI_RI_168 | B23: ASTRAL S.P.A. | C23: 07.TRASPORTI E MOBILITÀ | D23: 07.02 TRASPORTO FERROVIARIO | E23: C77D24000030001 | F23: FERROVIA ROMA-VITERBO - INTERVENTI DI ADEGUAMENTO SISMICO | G23: 5,000,000.00 € | H23: 5,000,000.00 € | J23: 2_SEMESTRE_2023 | K23: 1_SEMESTRE_2024 | L23: 2_SEMESTRE_2024 | M23: 1_SEMESTRE_2025 | N23: 1_SEMESTRE_2025 | O23: 2_SEMESTRE_2026
A24: FSCRI_RI_200 | B24: ATINA COMUNE | C24: 07.TRASPORTI E MOBILITÀ | D24: 07.01 TRASPORTO STRADALE | E24: J47H18002040002 | F24: SNAI 2014-2020 - RIQUALIFICAZIONE DI ALCUNI TRATTI DELLA VIABILITÀ STRADALE DELL'AREA | G24: 770,000.00 € | H24: 770,000.00 € | J24: 2_SEMESTRE_2024 | K24: 1_SEMESTRE_2025 | L24: 1_SEMESTRE_2027 | M24: 2_SEMESTRE_2027 | N24: 1_SEMESTRE_2028 | O24: 2_SEMESTRE_2030
A25: FSCRI_RI_202 | B25: ANIENE X COMUNITÀ MONTANA | C25: 07.TRASPORTI E MOBILITÀ | D25: 07.01 TRASPORTO STRADALE | E25: D67H21009500003 | F25: SNAI 2014-2020 - MANUTENZIONE STRAORDINARIA STRADA COMUNALE LOCALITÀ LA SELVA | G25: 80,835.04 € | H25: 80,835.04 € | J25: 2_SEMESTRE_2024 | K25: 1_SEMESTRE_2025 | L25: 2_SEMESTRE_2025 | M25: 2_SEMESTRE_2025 | N25: 1_SEMESTRE_2026 | O25: 2_SEMESTRE_2027
A26: FSCRI_RI_203 | B26: ANIENE X COMUNITÀ MONTANA | C26: 07.TRASPORTI E MOBILITÀ | D26: 07.01 TRASPORTO STRADALE | E26: D27H21009540002 | F26: SNAI 2014-2020 - RIQUALIFICAZIONE DELLA VIABILITÀ DI ACCESSO ALLA FORESTA LAGO NEL COMUNE DI PERCILE | G26: 100,000.00 € | H26: 100,000.00 € | J26: 2_SEMESTRE_2024 | K26: 1_SEMESTRE_2025 | L26: 1_SEMESTRE_2026 | M26: 2_SEMESTRE_2026 | N26: 1_SEMESTRE_2027 | O26: 2_SEMESTRE_2027
A27: FSCRI_RI_204 | B27: ATINA COMUNE | C27: 06.CULTURA | D27: 06.01 PATRIMONIO E PAESAGGIO | E27: J43J18000110002 | F27: SNAI 2014-2020 - VALORIZZAZIONE DEL SISTEMA MUSEALE DELLA VALLE DI COMINO: CONVENTO DI SAN FRANCESCO | G27: 150,000.00 € | H27: 150,000.00 € | J27: 2_SEMESTRE_2024 | K27: 1_SEMESTRE_2025 | L27: 1_SEMESTRE_2026 | M27: 2_SEMESTRE_2026 | N27: 1_SEMESTRE_2027 | O27: 2_SEMESTRE_2029
A28: FSCRI_RI_205 | B28: ANIENE X COMUNITÀ MONTANA | C28: 08.RIQUALIFICAZIONE URBANA | D28: 08.01 EDILIZIA E SPAZI PUBBLICI | E28: D32B21000020002 | F28: SNAI 2014-2020 - VALORIZZAZIONE EX SCUOLA MATERNA IN CENTRO POLIFUNZIONALE COMUNE DI VIVARO ROMANO | G28: 120,000.00 € | H28: 120,000.00 € | J28: 2_SEMESTRE_2024 | K28: 1_SEMESTRE_2025 | L28: 2_SEMESTRE_2025 | M28: 2_SEMESTRE_2025 | N28: 1_SEMESTRE_2026 | O28: 2_SEMESTRE_2028
A29: FSCRI_RI_206 | B29: ANIENE X COMUNITÀ MONTANA | C29: 06.CULTURA | D29: 06.01 PATRIMONIO E PAESAGGIO | E29: D37B21000040002 | F29: SNAI 2014-2020 - SCAVI E ACCESSO A CAMERATA VECCHIA | G29: 50,000.00 € | H29: 50,000.00 € | J29: 2_SEMESTRE_2024 | K29: 1_SEMESTRE_2025 | L29: 2_SEMESTRE_2025 | M29: 2_SEMESTRE_2025 | N29: 1_SEMESTRE_2026 | O29: 2_SEMESTRE_2027
A30: FSCRI_RI_208 | B30: ANIENE X COMUNITÀ MONTANA | C30: 06.CULTURA | D30: 06.01 PATRIMONIO E PAESAGGIO | E30: D42F21000180002 | F30: SNAI 2014-2020 - MUSEO D'ARTE MODERNA E CONTEMPORANEA DI ANTICOLI CORRADO | G30: 200,000.00 € | H30: 200,000.00 € | J30: 2_SEMESTRE_2024 | K30: 1_SEMESTRE_2025 | L30: 1_SEMESTRE_2026 | M30: 2_SEMESTRE_2026 | N30: 1_SEMESTRE_2027 | O30: 2_SEMESTRE_2028
A31: FSCRI_RI_209 | B31: VALLE DI COMINO 14 COMUNITA' MONTANA | C31: 06.CULTURA | D31: 06.02 ATTIVITÀ CULTURALI | E31: I49E19000790002 | F31: SNAI 2014-2020 - DISTRETTO CULTURALE "SHOWCIARIA" VALLE DI COMINO FESTIVAL: LABORATORIO ARTISTICO | G31: 250,000.00 € | H31: 250,000.00 € | J31: 2_SEMESTRE_2024 | K31: 1_SEMESTRE_2025 | L31: 1_SEMESTRE_2026 | M31: 2_SEMESTRE_2026 | N31: 1_SEMESTRE_2027 | O31: 2_SEMESTRE_2029
A32: FSCRI_RI_210 | B32: ANIENE X COMUNITÀ MONTANA | C32: 06.CULTURA | D32: 06.01 PATRIMONIO E PAESAGGIO | E32: D92F21000110002 | F32: SNAI 2014-2020 - MUSEO DELLA CIVILTÀ CONTADINA CASTELLO BRANCACCIO | G32: 140,000.00 € | H32: 140,000.00 € | J32: 2_SEMESTRE_2024 | K32: 1_SEMESTRE_2025 | L32: 2_SEMESTRE_2025 | M32: 2_SEMESTRE_2025 | N32: 1_SEMESTRE_2026 | O32: 2_SEMESTRE_2028
A33: FSCRI_RI_212 | B33: ANIENE X COMUNITÀ MONTANA | C33: 06.CULTURA | D33: 06.01 PATRIMONIO E PAESAGGIO | E33: D67B21000100002 | F33: SNAI 2014-2020 - ALLESTIMENTO MUSEO VILLA DI TRAIANO ARCINAZZO ROMANO | G33: 95,017.04 € | H33: 95,017.04 € | J33: 2_SEMESTRE_2024 | K33: 1_SEMESTRE_2025 | L33: 2_SEMESTRE_2025 | M33: 2_SEMESTRE_2025 | N33: 1_SEMESTRE_2026 | O33: 2_SEMESTRE_2028
A34: FSCRI_RI_213 | B34: UNIONE DEI COMUNI "VALLE DI COMINO" | C34: 03.COMPETITIVITÀ IMPRESE | D34: 03.03 AGRICOLTURA | E34: B55C19000190002 | F34: SNAI 2014-2020 - BIODISTRETTO VALLE DI COMINO: PUNTI VENDITA PRODOTTI BIO, IGT, ARTIGIANALI | G34: 85,000.00 € | H34: 85,000.00 € | J34: 2_SEMESTRE_2024 | K34: 1_SEMESTRE_2025 | L34: 2_SEMESTRE_2025 | M34: 2_SEMESTRE_2025 | N34: 1_SEMESTRE_2026 | O34: 2_SEMESTRE_2028
A35: FSCRI_RI_214 | B35: ANIENE X COMUNITÀ MONTANA | C35: 06.CULTURA | D35: 06.01 PATRIMONIO E PAESAGGIO | E35: D22F21000030002 | F35: SNAI 2014-2020 - ATTIVAZIONE CENTRO POLIFUNZIONALE CASTELLO THEODOLI | G35: 190,000.00 € | H35: 190,000.00 € | J35: 1_SEMESTRE_2024 | K35: 1_SEMESTRE_2025 | L35: 1_SEMESTRE_2026 | M35: 2_SEMESTRE_2026 | N35: 2_SEMESTRE_2026 | O35: 2_SEMESTRE_2028
A36: FSCRI_RI_215 | B36: ANIENE X COMUNITÀ MONTANA | C36: 03.COMPETITIVITÀ IMPRESE | D36: 03.02 TURISMO E OSPITALITÀ | E36: D35I21000030002 | F36: SNAI 2014-2020 - CENTRO ACCOGLIENZA TURISTI A CAMERATA NUOVA | G36: 74,000.00 € | H36: 74,000.00 € | J36: 2_SEMESTRE_2024 | K36: 1_SEMESTRE_2025 | L36: 2_SEMESTRE_2025 | M36: 2_SEMESTRE_2025 | N36: 1_SEMESTRE_2026 | O36: 2_SEMESTRE_2028
A37: FSCRI_RI_216 | B37: SUBIACO COMUNE | C37: 03.COMPETITIVITÀ IMPRESE | D37: 03.02 TURISMO E OSPITALITÀ | E37: J22B18000370001 | F37: SNAI 2014-2020 - ALLESTIMENTO CAMPO GARA SPORT FLUVIALI SUBIACO | G37: 200,000.00 € | H37: 200,000.00 € | J37: 2_SEMESTRE_2024 | K37: 1_SEMESTRE_2025 | L37: 1_SEMESTRE_2026 | M37: 2_SEMESTRE_2026 | N37: 1_SEMESTRE_2027 | O37: 2_SEMESTRE_2029
A38: FSCRI_RI_217 | B38: ANIENE X COMUNITÀ MONTANA | C38: 03.COMPETITIVITÀ IMPRESE | D38: 03.02 TURISMO E OSPITALITÀ | E38: D97B21000020002 | F38: SNAI 2014-2020 - STRUTTURE RICETTIVE EXTRALBERGHIERE A FILETTINO | G38: 140,000.00 € | H38: 140,000.00 € | J38: 2_SEMESTRE_2024 | K38: 1_SEMESTRE_2025 | L38: 1_SEMESTRE_2026 | M38: 2_SEMESTRE_2026 | N38: 1_SEMESTRE_2027 | O38: 2_SEMESTRE_2029
A39: FSCRI_RI_218 | B39: ANIENE X COMUNITÀ MONTANA | C39: 03.COMPETITIVITÀ IMPRESE | D39: 03.02 TURISMO E OSPITALITÀ | E39: D14J21000000002 | F39: SNAI 2014-2020 - RECUPERO AREA A RIDOSSO PONTE SAN TEODORO | G39: 150,000.00 € | H39: 150,000.00 € | J39: 2_SEMESTRE_2024 | K39: 1_SEMESTRE_2025 | L39: 1_SEMESTRE_2026 | M39: 2_SEMESTRE_2026 | N39: 1_SEMESTRE_2027 | O39: 2_SEMESTRE_2029
A40: FSCRI_RI_219 | B40: UNIONE DEI COMUNI "VALLE DI COMINO" | C40: 03.COMPETITIVITÀ IMPRESE | D40: 03.03 AGRICOLTURA | E40: B19G19000330002 | F40: SNAI 2014-2020 - BIODISTRETTO VALLE DI COMINO: LABORATORIO LAVORAZIONE CEREALI AUTOCTONI | G40: 153,000.00 € | H40: 153,000.00 € | J40: 2_SEMESTRE_2024 | K40: 1_SEMESTRE_2025 | L40: 1_SEMESTRE_2026 | M40: 2_SEMESTRE_2026 | N40: 1_SEMESTRE_2027 | O40: 2_SEMESTRE_2029
A41: FSCRI_RI_220 | B41: ANIENE X COMUNITÀ MONTANA | C41: 03.COMPETITIVITÀ IMPRESE | D41: 03.02 TURISMO E OSPITALITÀ | E41: D21G21000110002 | F41: SNAI 2014-2020 - SENTIERISTICA DELLA FORESTA LAGO NEL PARCO DEI LUCRETILI | G41: 82,000.00 € | H41: 82,000.00 € | J41: 2_SEMESTRE_2024 | K41: 1_SEMESTRE_2025 | L41: 2_SEMESTRE_2025 | M41: 2_SEMESTRE_2025 | N41: 1_SEMESTRE_2026 | O41: 2_SEMESTRE_2028
A42: FSCRI_RI_221 | B42: UNIONE DEI COMUNI 'VALLE DI COMINO' | C42: 11.ISTRUZIONE E FORMAZIONE | D42: 11.01 STRUTTURE EDUCATIVE E FORMATIVE | E42: B45C19000270002 | F42: SNAI 2014-2020 - OFFICINE DI RIGENERAZIONE RURALE | G42: 745,000.00 € | H42: 745,000.00 € | J42: 2_SEMESTRE_2024 | K42: 1_SEMESTRE_2025 | L42: 1_SEMESTRE_2026 | M42: 2_SEMESTRE_2026 | N42: 1_SEMESTRE_2027 | O42: 2_SEMESTRE_2029
A43: FSCRI_RI_222 | B43: ANIENE X COMUNITÀ MONTANA | C43: 03.COMPETITIVITÀ IMPRESE | D43: 03.02 TURISMO E OSPITALITÀ | E43: D14H21000040002 | F43: SNAI 2014-2020 - POTENZIAMENTO ANELLO DEI MONTI RUFFI ROCCA CANTERANO | G43: 152,340.21 € | H43: 152,340.21 € | J43: 2_SEMESTRE_2024 | K43: 1_SEMESTRE_2025 | L43: 1_SEMESTRE_2026 | M43: 2_SEMESTRE_2026 | N43: 1_SEMESTRE_2027 | O43: 2_SEMESTRE_2029
A44: FSCRI_RI_223 | B44: PETRELLA SALTO COMUNE | C44: 07.TRASPORTI E MOBILITÀ | D44: 07.01 TRASPORTO STRADALE | E44: F27H19003110002 | F44: SNAI 2014-2020 - POTENZIAMENTO ED ADEGUAMENTO DELLA VIABILITÀ D’AREA | G44: 1,330,000.00 € | H44: 1,030,000.00 € | I44: 300,000.00 € | J44: 2_SEMESTRE_2024 | K44: 1_SEMESTRE_2025 | L44: 1_SEMESTRE_2027 | M44: 2_SEMESTRE_2027 | N44: 1_SEMESTRE_2028 | O44: 2_SEMESTRE_2030
A45: FSCRI_RI_224 | B45: MONTI SIMBRUINI PARCO NATURALE REGIONALE | C45: 03.COMPETITIVITÀ IMPRESE | D45: 03.02 TURISMO E OSPITALITÀ | E45: G89C20000120002 | F45: SNAI 2014-2020 - UN PARCO PER TUTTI. PERCORSI FACILITATI NEL PARCO DEI SIMBRUINI | G45: 123,500.00 € | H45: 123,500.00 € | J45: 2_SEMESTRE_2024 | K45: 1_SEMESTRE_2025 | L45: 2_SEMESTRE_2025 | M45: 2_SEMESTRE_2025 | N45: 1_SEMESTRE_2026 | O45: 2_SEMESTRE_2028
A46: FSCRI_RI_225 | B46: ANIENE X COMUNITÀ MONTANA | C46: 03.COMPETITIVITÀ IMPRESE | D46: 03.02 TURISMO E OSPITALITÀ | E46: D38C20000520006 | F46: SNAI 2014-2020 - RETE DEI CAMMINI DEI SIMBRUINI | G46: 828,043.91 € | H46: 828,043.91 € | J46: 2_SEMESTRE_2024 | K46: 1_SEMESTRE_2025 | L46: 1_SEMESTRE_2027 | M46: 2_SEMESTRE_2027 | N46: 1_SEMESTRE_2028 | O46: 2_SEMESTRE_2030
A47: FSCRI_RI_227 | B47: PETRELLA SALTO COMUNE | C47: 11.ISTRUZIONE E FORMAZIONE | D47: 11.01 STRUTTURE EDUCATIVE E FORMATIVE | E47: F12B19000020002 | F47: SNAI 2014-2020 - SCUOLA FORMAZIONE "FILIERA FORESTALE E SVILUPPO SOSTENIBILE DEI TERRITORI MONTANI” | G47: 660,000.00 € | H47: 660,000.00 € | J47: 1_SEMESTRE_2024 | K47: 1_SEMESTRE_2025 | L47: 1_SEMESTRE_2026 | M47: 2_SEMESTRE_2026 | N47: 2_SEMESTRE_2026 | O47: 2_SEMESTRE_2028
A48: FSCRI_RI_229 | B48: MONTI SIMBRUINI PARCO NATURALE REGIONALE | C48: 03.COMPETITIVITÀ IMPRESE | D48: 03.02 TURISMO E OSPITALITÀ | E48: G19C20000040002 | F48: SNAI 2014-2020 - REALIZZAZIONE DELLA FATTORIA DIDATTICA DEL PARCO DEI SIMBRUINI | G48: 100,000.00 € | H48: 100,000.00 € | J48: 2_SEMESTRE_2024 | K48: 1_SEMESTRE_2025 | L48: 2_SEMESTRE_2025 | M48: 2_SEMESTRE_2025 | N48: 1_SEMESTRE_2026 | O48: 2_SEMESTRE_2028
A49: FSCRI_RI_230 | B49: PETRELLA SALTO COMUNE | C49: 05.AMBIENTE E RISORSE NATURALI | D49: 05.05 NATURA E BIODIVERSITÀ | E49: F65D19000140002 | F49: SNAI 2014-2020 - ACCESSIBILITÀ E FRUIBILITÀ DEI LAGHI | G49: 866,000.00 € | H49: 866,000.00 € | J49: 2_SEMESTRE_2024 | K49: 1_SEMESTRE_2025 | L49: 1_SEMESTRE_2027 | M49: 2_SEMESTRE_2027 | N49: 1_SEMESTRE_2028 | O49: 2_SEMESTRE_2030
A50: FSCRI_RI_231 | B50: ANIENE X COMUNITÀ MONTANA | C50: 03.COMPETITIVITÀ IMPRESE | D50: 03.03 AGRICOLTURA | E50: D76C21000000002 | F50: SNAI 2014-2020 - CENTRO PRODUZIONE E COMMERCIALIZZAZIONE PRODOTTI LOCALI A VALLEPIETRA | G50: 165,000.00 € | H50: 165,000.00 € | J50: 2_SEMESTRE_2024 | K50: 1_SEMESTRE_2025 | L50: 1_SEMESTRE_2026 | M50: 2_SEMESTRE_2026 | N50: 1_SEMESTRE_2027 | O50: 2_SEMESTRE_2029
A51: FSCRI_RI_233 | B51: ANIENE X COMUNITÀ MONTANA | C51: 03.COMPETITIVITÀ IMPRESE | D51: 03.03 AGRICOLTURA | E51: D66C21000000002 | F51: SNAI 2014-2020 - LABORATORIO LAVORAZIONE TARTUFI A CANTERANO | G51: 180,000.00 € | H51: 180,000.00 € | J51: 2_SEMESTRE_2024 | K51: 1_SEMESTRE_2025 | L51: 1_SEMESTRE_2026 | M51: 2_SEMESTRE_2026 | N51: 1_SEMESTRE_2027 | O51: 2_SEMESTRE_2029
A52: FSCRI_RI_234 | B52: PETRELLA SALTO COMUNE | C52: 03.COMPETITIVITÀ IMPRESE | D52: 03.03 AGRICOLTURA | E52: F54B19000340002 | F52: SNAI 2014-2020 - RICONVERSIONE PATRIMONIO EDILIZIO PUBBLICO: LABORATORI PRODOTTI AGRICOLI BIOLOGICI | G52: 880,000.00 € | H52: 880,000.00 € | J52: 2_SEMESTRE_2024 | K52: 1_SEMESTRE_2025 | L52: 1_SEMESTRE_2027 | M52: 2_SEMESTRE_2027 | N52: 1_SEMESTRE_2028 | O52: 2_SEMESTRE_2030
A53: FSCRI_RI_239 | B53: ACQUAPENDENTE COMUNE | C53: 03.COMPETITIVITÀ IMPRESE | D53: 03.02 TURISMO E OSPITALITÀ | E53: F22B20000070002 | F53: SNAI 2014-2020 - GEOPARCO - AREE DI SOSTA PER CAMPER | G53: 785,024.00 € | H53: 635,024.00 € | I53: 150,000.00 € | J53: 2_SEMESTRE_2024 | K53: 1_SEMESTRE_2025 | L53: 1_SEMESTRE_2028 | M53: 1_SEMESTRE_2028 | N53: 2_SEMESTRE_2028 | O53: 2_SEMESTRE_2030
A54: FSCRI_RI_29 | B54: REGIONE LAZIO/COMMISSARIO STRAORDINARIO | C54: 07.TRASPORTI E MOBILITÀ | D54: 07.01 TRASPORTO STRADALE | E54: B21B06000520001 | F54: COLLEGAMENTO STRADALE CISTERNA- VALMONTONE E RELATIVE OPERE CONNESSE | G54: 400,000,000.00 € | H54: 100,000,000.00 € | I54: 300,000,000.00 € | J54: 2_SEMESTRE_2023 | K54: 1_SEMESTRE_2024 | L54: 2_SEMESTRE_2024 | M54: 2_SEMESTRE_2024 | N54: 1_SEMESTRE_2025 | O54: 2_SEMESTRE_2030
A55: FSCRI_RI_31 | B55: REGIONE LAZIO | C55: 06.CULTURA | D55: 06.01 PATRIMONIO E PAESAGGIO | E55: F84H23000530001 | F55: RESTAURO, RIFUNZIONALIZZAZIONE E VALORIZZAZIONE DI PALAZZO SILVESTRI RIVALDI | G55: 24,996,531.75 € | H55: 24,996,531.75 € | J55: 2_SEMESTRE_2023 | K55: 1_SEMESTRE_2024 | L55: 1_SEMESTRE_2025 | M55: 2_SEMESTRE_2025 | N55: 2_SEMESTRE_2025 | O55: 2_SEMESTRE_2029
A56: FSCRI_RI_78 | B56: ASTRAL S.P.A. | C56: 08.RIQUALIFICAZIONE URBANA | D56: 08.01 EDILIZIA E SPAZI PUBBLICI | E56: C87H23000850007 | F56: URBANIZZAZIONE ROMA CAPITALE LOTTO 1-OG 03 SUBINT B25 MASSIMINA-VIA TOMMASO D'AQUINO | G56: 6,772,866.84 € | H56: 6,772,866.84 € | J56: 2_SEMESTRE_2023 | K56: 1_SEMESTRE_2024 | L56: 1_SEMESTRE_2025 | M56: 2_SEMESTRE_2025 | N56: 1_SEMESTRE_2026 | O56: 2_SEMESTRE_2027
A57: FSCRI_RI_79 | B57: ASTRAL S.P.A. | C57: 07.TRASPORTI E MOBILITÀ | D57: 07.02 TRASPORTO FERROVIARIO | E57: C87D24000020001 | F57: FERROVIA ROMA-LIDO - NUOVO IMPIANTO DI SEGNALAMENTO DI TERRA CON BLOCCO AUTOMATICO CONTA ASSI E SCMT+ACCM | G57: 30,000,000.00 € | H57: 30,000,000.00 € | J57: 2_SEMESTRE_2024 | K57: 1_SEMESTRE_2025 | L57: 1_SEMESTRE_2025 | M57: 2_SEMESTRE_2025 | N57: 1_SEMESTRE_2026 | O57: 2_SEMESTRE_2030
A58: FSCRI_RI_82 | B58: ASTRAL S.P.A. | C58: 08.RIQUALIFICAZIONE URBANA | D58: 08.01 EDILIZIA E SPAZI PUBBLICI | E58: C87H23000860007 | F58: URBANIZZAZIONE ROMA CAPITALE LOTTO 2-OG06 SUBINT B44 TORRESINA 2-FOGNATURA ACQUE BIANCHE | G58: 800,000.00 € | H58: 800,000.00 € | J58: 2_SEMESTRE_2023 | K58: 1_SEMESTRE_2024 | L58: 1_SEMESTRE_2024 | M58: 1_SEMESTRE_2024 | N58: 2_SEMESTRE_2024 | O58: 2_SEMESTRE_2024
A59: FSCRI_RI_84 | B59: REGIONE LAZIO | C59: 07.TRASPORTI E MOBILITÀ | D59: 07.02 TRASPORTO FERROVIARIO | E59: F70B18000000003 | F59: FERROVIA ROMA-LIDO - IMPIANTI DI SEGNALAMENTO SCMT A BORDO DEI NUOVI TRENI | G59: 329,649,331.72 € | H59: 14,000,000.00 € | I59: 315,649,331.72 € | J59: 2_SEMESTRE_2024 | K59: 1_SEMESTRE_2025 | L59: 1_SEMESTRE_2025 | M59: 2_SEMESTRE_2025 | N59: 1_SEMESTRE_2026 | O59: 2_SEMESTRE_2031
A60: FSCRI_RI_87 | B60: ASTRAL S.P.A. | C60: 08.RIQUALIFICAZIONE URBANA | D60: 08.01 EDILIZIA E SPAZI PUBBLICI | E60: C87H23000870006 | F60: URBANIZZAZIONE ROMA CAPITALE LOTTO 3-OG08 SUBINT B50 MONTE STALLONARA-COLLEG.VASCA LAMINAZIONE | G60: 300,000.00 € | H60: 300,000.00 € | J60: 2_SEMESTRE_2023 | K60: 1_SEMESTRE_2024 | L60: 1_SEMESTRE_2024 | M60: 1_SEMESTRE_2024 | N60: 2_SEMESTRE_2024 | O60: 2_SEMESTRE_2024
A61: FSCRI_RI_89 | B61: ASTRAL S.P.A. | C61: 07.TRASPORTI E MOBILITÀ | D61: 07.02 TRASPORTO FERROVIARIO | E61: C81J19000030001 | F61: FERROVIA ROMA-LIDO - NUOVO DEPOSITO - OFFICINA A LIDO CENTRO | G61: 58,000,000.00 € | H61: 58,000,000.00 € | J61: 2_SEMESTRE_2024 | K61: 1_SEMESTRE_2025 | L61: 1_SEMESTRE_2025 | M61: 2_SEMESTRE_2025 | N61: 1_SEMESTRE_2026 | O61: 2_SEMESTRE_2031
A62: FSCRI_RI_90 | B62: ASTRAL S.P.A. | C62: 08.RIQUALIFICAZIONE URBANA | D62: 08.01 EDILIZIA E SPAZI PUBBLICI | E62: C87H23000880007 | F62: URBANIZZAZIONE ROMA CAPITALE LOTTO 3-OG08 SUBINT B50 M.STALLONARA-FOSSO E ATTR. VASCA DI LAMINAZIONE | G62: 1,000,000.00 € | H62: 1,000,000.00 € | J62: 2_SEMESTRE_2023 | K62: 1_SEMESTRE_2024 | L62: 1_SEMESTRE_2024 | M62: 1_SEMESTRE_2024 | N62: 2_SEMESTRE_2024 | O62: 2_SEMESTRE_2025
A63: FSCRI_RI_91 | B63: ASTRAL S.P.A. | C63: 07.TRASPORTI E MOBILITÀ | D63: 07.02 TRASPORTO FERROVIARIO | E63: C87D24000030001 | F63: FERROVIA ROMA-LIDO - DISPOSITIVI DI ARMAMENTO E DI CONTROLLO DELLA STAZIONE DI MAGLIANA | G63: 6,000,000.00 € | H63: 6,000,000.00 € | J63: 2_SEMESTRE_2023 | K63: 1_SEMESTRE_2024 | L63: 1_SEMESTRE_2024 | M63: 2_SEMESTRE_2024 | N63: 1_SEMESTRE_2025 | O63: 2_SEMESTRE_2026
A64: FSCRI_RI_92 | B64: ASTRAL S.P.A. | C64: 08.RIQUALIFICAZIONE URBANA | D64: 08.01 EDILIZIA E SPAZI PUBBLICI | E64: C87H23000890007 | F64: URBANIZZAZIONE ROMA CAPITALE LOTTO 3-OG 08 SUBINT B49 PIANSACCOCCIA-SISTEMAZIONE RECAPITO FOSSO | G64: 700,000.00 € | H64: 700,000.00 € | J64: 2_SEMESTRE_2023 | K64: 1_SEMESTRE_2024 | L64: 1_SEMESTRE_2024 | M64: 1_SEMESTRE_2024 | N64: 2_SEMESTRE_2024 | O64: 2_SEMESTRE_2024
A65: FSCRI_RI_93 | B65: ASTRAL S.P.A. | C65: 08.RIQUALIFICAZIONE URBANA | D65: 08.01 EDILIZIA E SPAZI PUBBLICI | E65: C87H23000900007 | F65: URBANIZZAZIONE ROMA CAPITALE LOTTO 3 - OG 08 SUBINT B48 COLLE FIORITO-VASCA DI LAMINAZIONE EST | G65: 1,200,000.00 € | H65: 1,200,000.00 € | J65: 2_SEMESTRE_2023 | K65: 1_SEMESTRE_2024 | L65: 1_SEMESTRE_2024 | M65: 1_SEMESTRE_2024 | N65: 2_SEMESTRE_2024 | O65: 2_SEMESTRE_2025
A66: LAZ-9990001 | B66: ANAS SPA | C66: 07.TRASPORTI E MOBILITÀ | D66: 07.01 TRASPORTO STRADALE | E66: F81B16000600001 | F66: Intervento di realizzazione di corsie complanari al GRA tra Via Casilina e lo svincolo di Tor Bella Monaca - I Stralcio | G66: 69,144,200.00 € | H66: 24,444,200.00 € | I66: 44,700,000.00 € | J66: 2_SEMESTRE_2023 | K66: 1_SEMESTRE_2024 | L66: 1_SEMESTRE_2026 | M66: 2_SEMESTRE_2026 | N66: 2_SEMESTRE_2026 | O66: 2_SEMESTRE_2029
A67: LAZ-9990002 | B67: ANAS SPA | C67: 07.TRASPORTI E MOBILITÀ | D67: 07.01 TRASPORTO STRADALE | E67: F84E16001410001 | F67: Intervento di realizzazione di corsie complanari al GRA tra Via Casilina e lo svincolo di Tor Bella Monaca - II Stralcio | G67: 30,846,400.00 € | H67: 30,846,400.00 € | J67: 2_SEMESTRE_2023 | K67: 1_SEMESTRE_2024 | L67: 1_SEMESTRE_2023 | M67: 2_SEMESTRE_2025 | N67: 1_SEMESTRE_2026 | O67: 1_SEMESTRE_2028
A68: LAZ-9990003 | B68: ASTRAL S.P.A. | C68: 07.TRASPORTI E MOBILITÀ | D68: 07.01 TRASPORTO STRADALE | E68: C97H23001550003 | F68: Interventi di messa in sicurezza e adeguamento normativo SR 630 "Ausonia" | G68: 10,782,712.31 € | H68: 10,782,712.31 € | J68: 2_SEMESTRE_2024 | K68: 1_SEMESTRE_2025 | L68: 1_SEMESTRE_2025 | M68: 2_SEMESTRE_2025 | N68: 1_SEMESTRE_2026 | O68: 2_SEMESTRE_2030
A69: LAZ-9990004 | B69: ASTRAL S.P.A. | C69: 07.TRASPORTI E MOBILITÀ | D69: 07.01 TRASPORTO STRADALE | E69: C87H23001830003 | F69: Opere di manutenzione ordinaria e straordinaria volte alla messa in sicurezza dei ponti e dei cavalcavia SR 213 Flacca nei Comuni di Formia e Gaeta | G69: 16,228,083.38 € | H69: 16,228,083.38 € | J69: 2_SEMESTRE_2024 | K69: 1_SEMESTRE_2025 | L69: 1_SEMESTRE_2025 | M69: 2_SEMESTRE_2025 | N69: 1_SEMESTRE_2026 | O69: 2_SEMESTRE_2030
A70: LAZ-9990005 | B70: ASTRAL S.P.A. | C70: 07.TRASPORTI E MOBILITÀ | D70: 07.01 TRASPORTO STRADALE | E70: C81B17000900002 | F70: Comune di Ciampino – S.P. Via dei Laghi, sottopasso in località Casabianca | G70: 17,000,000.00 € | H70: 8,000,000.00 € | I70: 9,000,000.00 € | J70: 2_SEMESTRE_2024 | K70: 1_SEMESTRE_2025 | L70: 1_SEMESTRE_2025 | M70: 2_SEMESTRE_2025 | N70: 1_SEMESTRE_2026 | O70: 2_SEMESTRE_2030
A71: LAZ-9990006 | B71: ASTRAL S.P.A. | C71: 07.TRASPORTI E MOBILITÀ | D71: 07.01 TRASPORTO STRADALE | E71: C97H23001560003 | F71: Interventi di messa in sicurezza di strade della rete viaria regionale ricadente nella provincia di Rieti: SR314, SP34, SR79, SR657, SR313, SP54 | G71: 4,813,239.06 € | H71: 4,813,239.06 € | J71: 2_SEMESTRE_2024 | K71: 1_SEMESTRE_2025 | L71: 1_SEMESTRE_2026 | M71: 2_SEMESTRE_2026 | N71: 1_SEMESTRE_2027 | O71: 2_SEMESTRE_2029
A72: LAZ-9990007 | B72: CONSORZIO INDUSTRIALE DEL LAZIO | C72: 03.COMPETITIVITÀ IMPRESE | D72: 03.01 INDUSTRIA E SERVIZI | E72: C21E22000080002 | F72: Aree industriali - Accessi stradali area stabilimento militare Propellenti - Comune di Fontana Liri | G72: 200,000.00 € | H72: 200,000.00 € | J72: 2_SEMESTRE_2023 | K72: 1_SEMESTRE_2024 | L72: 1_SEMESTRE_2025 | M72: 2_SEMESTRE_2025 | N72: 2_SEMESTRE_2025 | O72: 2_SEMESTRE_2025
A73: LAZ-9990008 | B73: CONSORZIO INDUSTRIALE DEL LAZIO | C73: 03.COMPETITIVITÀ IMPRESE | D73: 03.01 INDUSTRIA E SERVIZI | E73: G57B21000010002 | F73: Aree industriali - Acquedotto consortile–Viabilità-Videosorveglianza-Cisterna di Latina | G73: 2,816,790.80 € | H73: 2,816,790.80 € | J73: 2_SEMESTRE_2023 | K73: 1_SEMESTRE_2024 | L73: 1_SEMESTRE_2025 | M73: 2_SEMESTRE_2025 | N73: 2_SEMESTRE_2025 | O73: 2_SEMESTRE_2027
A74: LAZ-9990009 | B74: CONSORZIO INDUSTRIALE DEL LAZIO | C74: 03.COMPETITIVITÀ IMPRESE | D74: 03.01 INDUSTRIA E SERVIZI | E74: C81E22000090002 | F74: Aree industriali - Adeguamento strada ASI n 7-Manutenzione e messa in sicurezza-Ferentino | G74: 2,000,000.00 € | H74: 2,000,000.00 € | J74: 2_SEMESTRE_2023 | K74: 1_SEMESTRE_2024 | L74: 1_SEMESTRE_2025 | M74: 2_SEMESTRE_2025 | N74: 2_SEMESTRE_2025 | O74: 2_SEMESTRE_2026
A75: LAZ-9990010 | B75: CONSORZIO INDUSTRIALE DEL LAZIO | C75: 03.COMPETITIVITÀ IMPRESE | D75: 03.01 INDUSTRIA E SERVIZI | E75: G34H22000470002 | F75: Aree industriali - Adeguamento viabilità- infrastrutture - Agglomerato industriale di Borgorose | G75: 1,000,000.00 € | H75: 1,000,000.00 € | J75: 2_SEMESTRE_2023 | K75: 1_SEMESTRE_2024 | L75: 1_SEMESTRE_2025 | M75: 2_SEMESTRE_2025 | N75: 2_SEMESTRE_2025 | O75: 2_SEMESTRE_2026
A76: LAZ-9990011 | B76: CONSORZIO INDUSTRIALE DEL LAZIO | C76: 03.COMPETITIVITÀ IMPRESE | D76: 03.01 INDUSTRIA E SERVIZI | E76: C54H22000370002 | F76: Aree industriali - By Pass viario Morolense Monti Lepini - Comune di Patrica | G76: 2,500,000.00 € | H76: 2,500,000.00 € | J76: 2_SEMESTRE_2023 | K76: 1_SEMESTRE_2024 | L76: 1_SEMESTRE_2025 | M76: 2_SEMESTRE_2025 | N76: 2_SEMESTRE_2025 | O76: 2_SEMESTRE_2027
A77: LAZ-9990012 | B77: CONSORZIO INDUSTRIALE DEL LAZIO | C77: 03.COMPETITIVITÀ IMPRESE | D77: 03.01 INDUSTRIA E SERVIZI | E77: J42E22000020002 | F77: Aree industriali - Collettore zona industriale Cassino - Depuratore di Villa S. Lucia | G77: 1,169,279.19 € | H77: 1,169,279.19 € | J77: 2_SEMESTRE_2023 | K77: 1_SEMESTRE_2024 | L77: 1_SEMESTRE_2025 | M77: 2_SEMESTRE_2025 | N77: 2_SEMESTRE_2025 | O77: 2_SEMESTRE_2026
A78: LAZ-9990013 | B78: CONSORZIO INDUSTRIALE DEL LAZIO | C78: 03.COMPETITIVITÀ IMPRESE | D78: 03.01 INDUSTRIA E SERVIZI | E78: G97B21000010002 | F78: Aree industriali - Completamento area artigianale-Impianto depurazione-Videosorveglianza - Sermoneta | G78: 2,603,497.30 € | H78: 2,603,497.30 € | J78: 2_SEMESTRE_2023 | K78: 1_SEMESTRE_2024 | L78: 1_SEMESTRE_2025 | M78: 2_SEMESTRE_2025 | N78: 2_SEMESTRE_2025 | O78: 2_SEMESTRE_2027
A79: LAZ-9990014 | B79: CONSORZIO INDUSTRIALE DEL LAZIO | C79: 03.COMPETITIVITÀ IMPRESE | D79: 03.01 INDUSTRIA E SERVIZI | E79: C91E22000090002 | F79: Aree industriali - Completamento strada -ex CRDM-Comune di Isola del Liri | G79: 700,000.00 € | H79: 700,000.00 € | J79: 2_SEMESTRE_2023 | K79: 1_SEMESTRE_2024 | L79: 1_SEMESTRE_2025 | M79: 2_SEMESTRE_2025 | N79: 2_SEMESTRE_2025 | O79: 2_SEMESTRE_2026
A80: LAZ-9990015 | B80: CONSORZIO INDUSTRIALE DEL LAZIO | C80: 03.COMPETITIVITÀ IMPRESE | D80: 03.01 INDUSTRIA E SERVIZI | E80: G89C21000370002 | F80: Aree industriali - Impianto di depurazione - Videosorveglianza - Pontinia loc. Mazzocchio | G80: 708,497.30 € | H80: 708,497.30 € | J80: 2_SEMESTRE_2023 | K80: 1_SEMESTRE_2024 | L80: 1_SEMESTRE_2025 | M80: 2_SEMESTRE_2025 | N80: 2_SEMESTRE_2025 | O80: 2_SEMESTRE_2026
A81: LAZ-9990016 | B81: CONSORZIO INDUSTRIALE DEL LAZIO | C81: 03.COMPETITIVITÀ IMPRESE | D81: 03.01 INDUSTRIA E SERVIZI | E81: G89C21000360002 | F81: AREE INDUSTRIALI - IMPIANTO DI DEPURAZIONE – POTENZIAMENTO VIDEOSORVEGLIANZA - ROMA CASTEL ROMANO | G81: 1,000,000.00 € | H81: 1,000,000.00 € | J81: 2_SEMESTRE_2023 | K81: 1_SEMESTRE_2024 | L81: 1_SEMESTRE_2025 | M81: 2_SEMESTRE_2025 | N81: 2_SEMESTRE_2025 | O81: 2_SEMESTRE_2026
A82: LAZ-9990017 | B82: CONSORZIO INDUSTRIALE DEL LAZIO | C82: 03.COMPETITIVITÀ IMPRESE | D82: 03.01 INDUSTRIA E SERVIZI | E82: J31B22000940002 | F82: Aree industriali - Incrocio SR 182 con SP 257 - Comune di San Giovanni Incarico | G82: 436,758.00 € | H82: 436,758.00 € | J82: 2_SEMESTRE_2023 | K82: 1_SEMESTRE_2024 | L82: 1_SEMESTRE_2025 | M82: 2_SEMESTRE_2025 | N82: 2_SEMESTRE_2025 | O82: 2_SEMESTRE_2026
A83: LAZ-9990018 | B83: CONSORZIO INDUSTRIALE DEL LAZIO | C83: 03.COMPETITIVITÀ IMPRESE | D83: 03.01 INDUSTRIA E SERVIZI | E83: C41E22000130002 | F83: Aree industriali - Lavori di sistemazione Asse Attrezzato di Frosinone | G83: 2,200,000.00 € | H83: 2,200,000.00 € | J83: 2_SEMESTRE_2023 | K83: 1_SEMESTRE_2024 | L83: 1_SEMESTRE_2025 | M83: 2_SEMESTRE_2025 | N83: 2_SEMESTRE_2025 | O83: 2_SEMESTRE_2027
A84: LAZ-9990019 | B84: CONSORZIO INDUSTRIALE DEL LAZIO | C84: 03.COMPETITIVITÀ IMPRESE | D84: 03.01 INDUSTRIA E SERVIZI | E84: J16G22000270002 | F84: Aree industriali - Manutenzione Straordinaria accessi - Area industriale di Villa Santa Lucia | G84: 123,500.00 € | H84: 123,500.00 € | J84: 2_SEMESTRE_2023 | K84: 1_SEMESTRE_2024 | L84: 1_SEMESTRE_2025 | M84: 2_SEMESTRE_2025 | N84: 2_SEMESTRE_2025 | O84: 2_SEMESTRE_2025
A85: LAZ-9990020 | B85: CONSORZIO INDUSTRIALE DEL LAZIO | C85: 03.COMPETITIVITÀ IMPRESE | D85: 03.01 INDUSTRIA E SERVIZI | E85: G49D22000080002 | F85: Aree industriali - Manutenzione straordinaria strade - Agglomerato Consortile Rieti-Cittaducale | G85: 3,425,140.00 € | H85: 3,425,140.00 € | J85: 2_SEMESTRE_2023 | K85: 1_SEMESTRE_2024 | L85: 1_SEMESTRE_2025 | M85: 2_SEMESTRE_2025 | N85: 2_SEMESTRE_2025 | O85: 2_SEMESTRE_2027
A86: LAZ-9990021 | B86: CONSORZIO INDUSTRIALE DEL LAZIO | C86: 03.COMPETITIVITÀ IMPRESE | D86: 03.01 INDUSTRIA E SERVIZI | E86: J97H22001650002 | F86: Aree industriali - Messa in sicurezza cavalcavia SR 6- FCA - Comune di Piedimonte San Germano | G86: 243,384.00 € | H86: 243,384.00 € | J86: 2_SEMESTRE_2023 | K86: 1_SEMESTRE_2024 | L86: 1_SEMESTRE_2025 | M86: 2_SEMESTRE_2025 | N86: 2_SEMESTRE_2025 | O86: 2_SEMESTRE_2026
A87: LAZ-9990022 | B87: CONSORZIO INDUSTRIALE DEL LAZIO | C87: 03.COMPETITIVITÀ IMPRESE | D87: 03.01 INDUSTRIA E SERVIZI | E87: J67H22001450002 | F87: Aree industriali - Messa in sicurezza sede stradale - Area industriale di Belmonte Castello | G87: 145,000.00 € | H87: 145,000.00 € | J87: 2_SEMESTRE_2023 | K87: 1_SEMESTRE_2024 | L87: 1_SEMESTRE_2025 | M87: 2_SEMESTRE_2025 | N87: 2_SEMESTRE_2025 | O87: 2_SEMESTRE_2025
A88: LAZ-9990023 | B88: CONSORZIO INDUSTRIALE DEL LAZIO | C88: 03.COMPETITIVITÀ IMPRESE | D88: 03.01 INDUSTRIA E SERVIZI | E88: J26G22000290002 | F88: Aree industriali - Messa in sicurezza sede stradale - Area industriale di Casalvieri | G88: 156,913.00 € | H88: 156,913.00 € | J88: 2_SEMESTRE_2023 | K88: 1_SEMESTRE_2024 | L88: 1_SEMESTRE_2025 | M88: 2_SEMESTRE_2025 | N88: 2_SEMESTRE_2025 | O88: 2_SEMESTRE_2025
A89: LAZ-9990024 | B89: CONSORZIO INDUSTRIALE DEL LAZIO | C89: 03.COMPETITIVITÀ IMPRESE | D89: 03.01 INDUSTRIA E SERVIZI | E89: J26G22000300002 | F89: Aree industriali - Messa in sicurezza sede stradale - Area industriale di Colfelice | G89: 250,000.00 € | H89: 250,000.00 € | J89: 2_SEMESTRE_2023 | K89: 1_SEMESTRE_2024 | L89: 1_SEMESTRE_2025 | M89: 2_SEMESTRE_2025 | N89: 2_SEMESTRE_2025 | O89: 2_SEMESTRE_2026
A90: LAZ-9990025 | B90: CONSORZIO INDUSTRIALE DEL LAZIO | C90: 03.COMPETITIVITÀ IMPRESE | D90: 03.01 INDUSTRIA E SERVIZI | E90: J96G22000260002 | F90: Aree industriali - Messa in sicurezza sede stradale - Area industriale di San Vittore nel Lazio | G90: 130,290.00 € | H90: 130,290.00 € | J90: 2_SEMESTRE_2023 | K90: 1_SEMESTRE_2024 | L90: 1_SEMESTRE_2025 | M90: 2_SEMESTRE_2025 | N90: 2_SEMESTRE_2025 | O90: 2_SEMESTRE_2025
A91: LAZ-9990026 | B91: CONSORZIO INDUSTRIALE DEL LAZIO | C91: 03.COMPETITIVITÀ IMPRESE | D91: 03.01 INDUSTRIA E SERVIZI | E91: G85F21001620002 | F91: Aree industriali - Messa in sicurezza sede stradale - Roma loc. Santa Palomba | G91: 1,000,000.00 € | H91: 1,000,000.00 € | J91: 2_SEMESTRE_2023 | K91: 1_SEMESTRE_2024 | L91: 1_SEMESTRE_2025 | M91: 2_SEMESTRE_2025 | N91: 2_SEMESTRE_2025 | O91: 2_SEMESTRE_2026
A92: LAZ-9990027 | B92: CONSORZIO INDUSTRIALE DEL LAZIO | C92: 03.COMPETITIVITÀ IMPRESE | D92: 03.01 INDUSTRIA E SERVIZI | E92: J66G22000260002 | F92: Aree industriali - Messa in sicurezza sede stradale - Zona commerciale artigianale Badia di Esperia | G92: 128,500.00 € | H92: 128,500.00 € | J92: 2_SEMESTRE_2023 | K92: 1_SEMESTRE_2024 | L92: 1_SEMESTRE_2025 | M92: 2_SEMESTRE_2025 | N92: 2_SEMESTRE_2025 | O92: 2_SEMESTRE_2025
A93: LAZ-9990028 | B93: CONSORZIO INDUSTRIALE DEL LAZIO | C93: 03.COMPETITIVITÀ IMPRESE | D93: 03.01 INDUSTRIA E SERVIZI | E93: C91E22000080002 | F93: Aree industriali - Messa in sicurezza sede stradale – Via Caragno - Comune di Ceprano | G93: 1,000,000.00 € | H93: 1,000,000.00 € | J93: 2_SEMESTRE_2023 | K93: 1_SEMESTRE_2024 | L93: 1_SEMESTRE_2025 | M93: 2_SEMESTRE_2025 | N93: 2_SEMESTRE_2025 | O93: 2_SEMESTRE_2026
A94: LAZ-9990029 | B94: CONSORZIO INDUSTRIALE DEL LAZIO | C94: 03.COMPETITIVITÀ IMPRESE | D94: 03.01 INDUSTRIA E SERVIZI | E94: C64H22000450002 | F94: Aree industriali - Messa in sicurezza svincolo – SR 6 Via Casilina/Località Meringo - Comune di Ripi | G94: 600,000.00 € | H94: 600,000.00 € | J94: 2_SEMESTRE_2023 | K94: 1_SEMESTRE_2024 | L94: 1_SEMESTRE_2025 | M94: 2_SEMESTRE_2025 | N94: 2_SEMESTRE_2025 | O94: 2_SEMESTRE_2026
A95: LAZ-9990030 | B95: CONSORZIO INDUSTRIALE DEL LAZIO | C95: 03.COMPETITIVITÀ IMPRESE | D95: 03.01 INDUSTRIA E SERVIZI | E95: E81B21005930005 | F95: Aree industriali - Opere completamento - Agglomerato Industriale Castagneto nel Comune di Formia | G95: 3,150,000.00 € | H95: 3,150,000.00 € | J95: 2_SEMESTRE_2023 | K95: 1_SEMESTRE_2024 | L95: 1_SEMESTRE_2025 | M95: 2_SEMESTRE_2025 | N95: 2_SEMESTRE_2025 | O95: 2_SEMESTRE_2027
A96: LAZ-9990031 | B96: CONSORZIO INDUSTRIALE DEL LAZIO | C96: 03.COMPETITIVITÀ IMPRESE | D96: 03.01 INDUSTRIA E SERVIZI | E96: E51B21004520005 | F96: Aree industriali - Opere completamento - Agglomerato Industriale di Penitro nel Comune di Minturno | G96: 1,500,000.00 € | H96: 1,500,000.00 € | J96: 2_SEMESTRE_2023 | K96: 1_SEMESTRE_2024 | L96: 1_SEMESTRE_2025 | M96: 2_SEMESTRE_2025 | N96: 2_SEMESTRE_2025 | O96: 2_SEMESTRE_2026
A97: LAZ-9990032 | B97: CONSORZIO INDUSTRIALE DEL LAZIO | C97: 03.COMPETITIVITÀ IMPRESE | D97: 03.01 INDUSTRIA E SERVIZI | E97: J21B22000930002 | F97: Aree industriali - Opere di Urbanizzazione - Strada di accesso area ind.le San Giorgio a Liri | G97: 300,000.00 € | H97: 300,000.00 € | J97: 2_SEMESTRE_2023 | K97: 1_SEMESTRE_2024 | L97: 1_SEMESTRE_2025 | M97: 2_SEMESTRE_2025 | N97: 2_SEMESTRE_2025 | O97: 2_SEMESTRE_2026
A98: LAZ-9990033 | B98: CONSORZIO INDUSTRIALE DEL LAZIO | C98: 03.COMPETITIVITÀ IMPRESE | D98: 03.01 INDUSTRIA E SERVIZI | E98: G54H22000240002 | F98: AREE INDUSTRIALI - OPERE DI URBANIZZAZIONE – AGGLOMERATO INDUSTRIALE FARA SABINA - VIA DEI CAVALLI | G98: 902,121.55 € | H98: 902,121.55 € | J98: 2_SEMESTRE_2023 | K98: 1_SEMESTRE_2024 | L98: 1_SEMESTRE_2025 | M98: 2_SEMESTRE_2025 | N98: 2_SEMESTRE_2025 | O98: 2_SEMESTRE_2026
A99: LAZ-9990034 | B99: CONSORZIO INDUSTRIALE DEL LAZIO | C99: 03.COMPETITIVITÀ IMPRESE | D99: 03.01 INDUSTRIA E SERVIZI | E99: G34H22000460002 | F99: Aree industriali - Opere di Urbanizzazione Fara in Sabina - Montelibretti | G99: 548,323.80 € | H99: 548,323.80 € | J99: 2_SEMESTRE_2023 | K99: 1_SEMESTRE_2024 | L99: 1_SEMESTRE_2025 | M99: 2_SEMESTRE_2025 | N99: 2_SEMESTRE_2025 | O99: 2_SEMESTRE_2026
A100: LAZ-9990035 | B100: CONSORZIO INDUSTRIALE DEL LAZIO | C100: 03.COMPETITIVITÀ IMPRESE | D100: 03.01 INDUSTRIA E SERVIZI | E100: C64H22000460002 | F100: Aree industriali - Parcheggio di scambio tra la SP 278 e l’uscita della SR 214 - Comune di Veroli | G100: 1,000,000.00 € | H100: 1,000,000.00 € | J100: 2_SEMESTRE_2023 | K100: 1_SEMESTRE_2024 | L100: 1_SEMESTRE_2025 | M100: 2_SEMESTRE_2025 | N100: 2_SEMESTRE_2025 | O100: 2_SEMESTRE_2026
A101: LAZ-9990036 | B101: CONSORZIO INDUSTRIALE DEL LAZIO | C101: 03.COMPETITIVITÀ IMPRESE | D101: 03.01 INDUSTRIA E SERVIZI | E101: G17B21000000002 | F101: AREE INDUSTRIALI - PUBBLICA ILLUMINAZIONE- FOTOVOLTAICO-VIDEOSORVEGLIANZA-AREA ARTIGIANALE APRILIA | G101: 613,270.90 € | H101: 613,270.90 € | J101: 2_SEMESTRE_2023 | K101: 1_SEMESTRE_2024 | L101: 1_SEMESTRE_2025 | M101: 2_SEMESTRE_2025 | N101: 2_SEMESTRE_2025 | O101: 2_SEMESTRE_2026
A102: LAZ-9990037 | B102: CONSORZIO INDUSTRIALE DEL LAZIO | C102: 03.COMPETITIVITÀ IMPRESE | D102: 03.01 INDUSTRIA E SERVIZI | E102: C44H22000390002 | F102: Aree industriali - Realizzazione di strada – Via Ferrazza - Comune di Sora | G102: 1,000,000.00 € | H102: 1,000,000.00 € | J102: 2_SEMESTRE_2023 | K102: 1_SEMESTRE_2024 | L102: 1_SEMESTRE_2025 | M102: 2_SEMESTRE_2025 | N102: 2_SEMESTRE_2025 | O102: 2_SEMESTRE_2026
A103: LAZ-9990038 | B103: CONSORZIO INDUSTRIALE DEL LAZIO | C103: 03.COMPETITIVITÀ IMPRESE | D103: 03.01 INDUSTRIA E SERVIZI | E103: C84H22000390002 | F103: Aree industriali - Realizzazione Rete Fognaria Colle San Paolo - Comune di Ceccano | G103: 3,005,514.17 € | H103: 3,005,514.17 € | J103: 2_SEMESTRE_2023 | K103: 1_SEMESTRE_2024 | L103: 1_SEMESTRE_2025 | M103: 2_SEMESTRE_2025 | N103: 2_SEMESTRE_2025 | O103: 2_SEMESTRE_2027
A104: LAZ-9990039 | B104: CONSORZIO INDUSTRIALE DEL LAZIO | C104: 03.COMPETITIVITÀ IMPRESE | D104: 03.01 INDUSTRIA E SERVIZI | E104: C24H22000250002 | F104: Aree industriali - Realizzazione Rotatoria Ponte sul Sacco - SP 122 - Comune di Morolo | G104: 1,000,000.00 € | H104: 1,000,000.00 € | J104: 2_SEMESTRE_2023 | K104: 1_SEMESTRE_2024 | L104: 1_SEMESTRE_2025 | M104: 2_SEMESTRE_2025 | N104: 2_SEMESTRE_2025 | O104: 2_SEMESTRE_2026
A105: LAZ-9990040 | B105: CONSORZIO INDUSTRIALE DEL LAZIO | C105: 03.COMPETITIVITÀ IMPRESE | D105: 03.01 INDUSTRIA E SERVIZI | E105: C54H22000360002 | F105: Aree industriali - Realizzazione Rotatoria SR 214/SR 155 - Comune di Alatri | G105: 800,000.00 € | H105: 800,000.00 € | J105: 2_SEMESTRE_2023 | K105: 1_SEMESTRE_2024 | L105: 1_SEMESTRE_2025 | M105: 2_SEMESTRE_2025 | N105: 2_SEMESTRE_2025 | O105: 2_SEMESTRE_2026
A106: LAZ-9990041 | B106: CONSORZIO INDUSTRIALE DEL LAZIO | C106: 03.COMPETITIVITÀ IMPRESE | D106: 03.01 INDUSTRIA E SERVIZI | E106: J61B22001830002 | F106: Aree industriali - Rotatoria Area industriale di Sant’Apollinare | G106: 715,500.00 € | H106: 715,500.00 € | J106: 2_SEMESTRE_2023 | K106: 1_SEMESTRE_2024 | L106: 1_SEMESTRE_2025 | M106: 2_SEMESTRE_2025 | N106: 2_SEMESTRE_2025 | O106: 2_SEMESTRE_2026
A107: LAZ-9990043 | B107: CONSORZIO INDUSTRIALE DEL LAZIO | C107: 03.COMPETITIVITÀ IMPRESE | D107: 03.01 INDUSTRIA E SERVIZI | E107: J17H22001110002 | F107: Aree industriali - Strada accesso Depuratore - Piedimonte San Germano-Cassino- Villa Santa Lucia | G107: 824,602.96 € | H107: 824,602.96 € | J107: 2_SEMESTRE_2023 | K107: 1_SEMESTRE_2024 | L107: 1_SEMESTRE_2025 | M107: 2_SEMESTRE_2025 | N107: 2_SEMESTRE_2025 | O107: 2_SEMESTRE_2026
A108: LAZ-9990045 | B108: CONSORZIO INDUSTRIALE DEL LAZIO | C108: 03.COMPETITIVITÀ IMPRESE | D108: 03.01 INDUSTRIA E SERVIZI | E108: G24H21000050002 | F108: Aree industriali - Videosorveglianza - Latina | G108: 100,000.00 € | H108: 100,000.00 € | J108: 2_SEMESTRE_2023 | K108: 1_SEMESTRE_2024 | L108: 1_SEMESTRE_2025 | M108: 2_SEMESTRE_2025 | N108: 2_SEMESTRE_2025 | O108: 2_SEMESTRE_2025
A109: 1 | B109: INTERPORTO CENTRO ITALIA ORTE SPA | C109: 07.TRASPORTI E MOBILITÀ | D109: 07.06 LOGISTICA | E109: J91B21000900008 | F109: Opere di completamento dell'Interporto di Orte - Fase 1 | G109: 11,542,641.55 € | H109: 7,453,183.40 € | I109: 4,089,458.15 € | J109: 1_SEMESTRE_2024 | K109: 2_SEMESTRE_2024 | L109: 2_SEMESTRE_2024 | M109: 1_SEMESTRE_2025 | N109: 2_SEMESTRE_2025 | O109: 2_SEMESTRE_2027
A110: 3 | B110: CONSORZIO DI BONIFICA LITORALE NORD | C110: 05.AMBIENTE E RISORSE NATURALI | D110: 05.02 RISORSE IDRICHE | E110: G14D15000010001 | F110: Lavori di ristrutturazione e ammodernamento impianto irriguo di Maccarese in Agro di Fiumicino - Completamento - Estendimento Settore 2 | G110: 6,310,000.00 € | H110: 6,310,000.00 € | J110: 1_SEMESTRE_2024 | K110: 2_SEMESTRE_2024 | L110: 2_SEMESTRE_2024 | M110: 1_SEMESTRE_2025 | N110: 2_SEMESTRE_2025 | O110: 2_SEMESTRE_2028
A111: 4 | B111: COMUNE DI SEZZE | C111: 06.CULTURA | D111: 06.02 ATTIVITA' CULTURALI | E111: C14J24000540001 | F111: Completamento del Teatro Sacro Italiano nel Comune di Sezze | G111: 2,000,000.00 € | H111: 2,000,000.00 € | J111: 1_SEMESTRE_2024 | K111: 2_SEMESTRE_2024 | L111: 1_SEMESTRE_2027 | M111: 2_SEMESTRE_2027 | N111: 1_SEMESTRE_2028 | O111: 2_SEMESTRE_2031
A112: 6 | B112: SPORT E SALUTE SPA | C112: 10.SOCIALE E SALUTE | D112: 10.01 STRUTTURE SOCIALI | E112: J72B24001990001 | F112: Interventi sulla tensostruttura comunale ed aree accessore ad Amaseno | G112: =SUM(H112:H112) -> 1,000,000.00 € | H112: 1,000,000.00 € | J112: 1_SEMESTRE_2024 | K112: 2_SEMESTRE_2024 | L112: 1_SEMESTRE_2026 | M112: 2_SEMESTRE_2026 | N112: 1_SEMESTRE_2027 | O112: 2_SEMESTRE_2029
A113: 7 | B113: SPORT E SALUTE SPA | C113: 10.SOCIALE E SALUTE | D113: 10.01 STRUTTURE SOCIALI | E113: J64J24000630001 | F113: Lavori di completamento ed efficientamento energetico del complesso natatorio comunale sito in località S. Giovanni a Civita Castellana | G113: =SUM(H113:H113) -> 1,000,000.00 € | H113: 1,000,000.00 € | J113: 1_SEMESTRE_2024 | K113: 2_SEMESTRE_2024 | L113: 1_SEMESTRE_2026 | M113: 2_SEMESTRE_2026 | N113: 1_SEMESTRE_2027 | O113: 2_SEMESTRE_2029
A114: 8 | B114: SPORT E SALUTE SPA | C114: 10.SOCIALE E SALUTE | D114: 10.01 STRUTTURE SOCIALI | E114: J14J24000300001 | F114: Completamento, efficientamento e manutenzione straordinaria dell’impianto sportivo comunale di via Gramsci nel Comune di Itri | G114: =SUM(H114:H114) -> 1,000,000.00 € | H114: 1,000,000.00 € | J114: 1_SEMESTRE_2024 | K114: 2_SEMESTRE_2024 | L114: 1_SEMESTRE_2026 | M114: 2_SEMESTRE_2026 | N114: 1_SEMESTRE_2027 | O114: 2_SEMESTRE_2029
A115: 9 | B115: SPORT E SALUTE SPA | C115: 10.SOCIALE E SALUTE | D115: 10.01 STRUTTURE SOCIALI | E115: J12H24001190001 | F115: Lavori di Completamento e Manutenzione Straordinaria dello Stadio di atletica leggera “R. Guidobaldi” a Rieti | G115: =SUM(H115:H115) -> 1,000,000.00 € | H115: 1,000,000.00 € | J115: 1_SEMESTRE_2024 | K115: 2_SEMESTRE_2024 | L115: 1_SEMESTRE_2026 | M115: 2_SEMESTRE_2026 | N115: 1_SEMESTRE_2027 | O115: 2_SEMESTRE_2029
A116: 10 | B116: SPORT E SALUTE SPA | C116: 10.SOCIALE E SALUTE | D116: 10.01 STRUTTURE SOCIALI | E116: J92H24001270001 | F116: Lavori di manutenzione straordinaria presso l’impianto sportivo comunale Roberto Pera a San Cesareo | G116: 1,000,000.00 € | H116: 1,000,000.00 € | J116: 1_SEMESTRE_2024 | K116: 2_SEMESTRE_2024 | L116: 1_SEMESTRE_2026 | M116: 2_SEMESTRE_2026 | N116: 1_SEMESTRE_2027 | O116: 2_SEMESTRE_2029
A117: 11 | B117: REGIONE LAZIO | C117: 08.RIQUALIFICAZIONE URBANA | D117: 08.01 EDILIZIA E SPAZI PUBBLICI | E117: F85H24000130001 | F117: Realizzazione di una nuova cappella nel territorio del Comune di Roma | G117: 750,000.00 € | H117: 750,000.00 € | J117: 1_SEMESTRE_2024 | K117: 2_SEMESTRE_2024 | L117: 2_SEMESTRE_2024 | M117: 1_SEMESTRE_2025 | N117: 2_SEMESTRE_2025 | O117: 2_SEMESTRE_2026
A118: 12 | B118: ASTRAL SPA | C118: 07.TRASPORTI E MOBILITÀ | D118: 07.05 MOBILITÀ URBANA | E118: C81G24000100001 | F118: Corridoio Gaeta-Formia (ex Littorina) | G118: 30,671,190.65 € | H118: 20,671,190.65 € | I118: 10,000,000.00 € | J118: 1_SEMESTRE_2024 | K118: 2_SEMESTRE_2024 | L118: 1_SEMESTRE_2025 | M118: 2_SEMESTRE_2025 | N118: 1_SEMESTRE_2026 | O118: 2_SEMESTRE_2031
A119: 13 | B119: Comune di Contigliano | C119: 10.SOCIALE E SALUTE | D119: 10.01 STRUTTURE SOCIALI | E119: C37H23001570003 | F119: Interventi strutturali finalizzati alla conversione a Casa della Comunità di Palazzo Cavalletti | G119: 750,000.00 € | H119: 750,000.00 € | J119: 1_SEMESTRE_2025 | K119: 2_SEMESTRE_2025 | L119: 2_SEMESTRE_2025 | M119: 1_SEMESTRE_2026 | N119: 1_SEMESTRE_2026 | O119: 2_SEMESTRE_2028
A120: 14 | B120: CITTA' METROPOLITANA DI ROMA CAPITALE | C120: 07.TRASPORTI E MOBILITÀ | D120: 07.05 MOBILITÀ URBANA | E120: F36G15001230005 | F120: Lavori di completamento del nodo di Ponte Lucano | G120: 12,100,000.00 € | H120: 8,100,000.00 € | I120: 4,000,000.00 € | J120: 1_SEMESTRE_2025 | K120: 2_SEMESTRE_2025 | L120: 2_SEMESTRE_2025 | M120: 2_SEMESTRE_2026 | N120: 1_SEMESTRE_2027 | O120: 2_SEMESTRE_2031
A121: 15 | B121: Comune di Velletri | C121: 06.CULTURA | D121: 06.01 PATRIMONIO E PAESAGGIO | E121: I17B24000060001 | F121: Ristrutturazione dell'ex Mattatoio comunale Velletri destinato ad attività culturali, sociali e di formazione | G121: 1,830,000.00 € | H121: 1,830,000.00 € | J121: 1_SEMESTRE_2025 | K121: 2_SEMESTRE_2025 | L121: 2_SEMESTRE_2025 | M121: 1_SEMESTRE_2026 | N121: 1_SEMESTRE_2027 | O121: 2_SEMESTRE_2029
A122: 16 | B122: Comune di Anzio | C122: 07.TRASPORTI E MOBILITÀ | D122: 07.03 TRASPORTO MARITTIMO | E122: F51G25000020002 | F122: Dragaggio del canale di ingresso al porto di Anzio | G122: 1,000,000.00 € | H122: 1,000,000.00 € | J122: 1_SEMESTRE_2025 | K122: 2_SEMESTRE_2025 | L122: 2_SEMESTRE_2025 | M122: 2_SEMESTRE_2025 | N122: 1_SEMESTRE_2026 | O122: 2_SEMESTRE_2026
A123: 17 | B123: Comune di Fontenuova | C123: 07.TRASPORTI E MOBILITÀ | D123: 07.05 MOBILITÀ URBANA | E123: D31B20001520007 | F123: Realizzazione di un nuovo tratto di pista ciclopedonale a completamento del collegamento tra le frazioni di Tor Lupara e Santa Lucia | G123: 1,500,000.00 € | H123: 1,500,000.00 € | J123: 1_SEMESTRE_2025 | K123: 2_SEMESTRE_2025 | L123: 2_SEMESTRE_2025 | M123: 2_SEMESTRE_2026 | N123: 1_SEMESTRE_2027 | O123: 2_SEMESTRE_2029
A124: 18 | B124: ASTRAL SPA | C124: 07.TRASPORTI E MOBILITÀ | D124: 07.02 TRASPORTO FERROVIARIO | E124: I89B00000000003 | F124: Ex Concesse RV (Adeguamento prezzi) - Raddoppio Stazione piazzale Flaminio (*) | G124: 100,126,688.62 € | H124: 673,098.70 € | I124: 99,453,589.92 € | J124: 1_SEMESTRE_2025 | K124: 2_SEMESTRE_2025 | L124: 2_SEMESTRE_2025 | M124: 2_SEMESTRE_2025 | N124: 1_SEMESTRE_2026 | O124: 2_SEMESTRE_2028
A125: 19 | B125: Comune di San Polo dei Cavalieri | C125: 07.TRASPORTI E MOBILITÀ | D125: 07.06 LOGISTICA | E125: G45123000020001 | F125: Realizzazione del parcheggio multipiano del Comune di San Polo dei Cavalieri | G125: 1,200,000.00 € | H125: 500,000.00 € | I125: 700,000.00 € | J125: 1_SEMESTRE_2025 | K125: 2_SEMESTRE_2025 | L125: 2_SEMESTRE_2025 | M125: 1_SEMESTRE_2026 | N125: 2_SEMESTRE_2026 | O125: 2_SEMESTRE_2028
A126: 20 | B126: CONSORZIO DI BONIFICA ETRURIA MERIDIONALE E SABINA | C126: 05.AMBIENTE E RISORSE NATURALI | D126: 05.01 RISCHI E ADATTAMENTO CLIMATICO | E126: C39H09000160002 | F126: Sistemazione idraulica del fiume Salto in località Grotti di Borgorose (*) | G126: 995,739.49 € | H126: 306,901.30 € | I126: 688,838.19 € | J126: 1_SEMESTRE_2025 | K126: 2_SEMESTRE_2025 | L126: 2_SEMESTRE_2025 | M126: 1_SEMESTRE_2026 | N126: 2_SEMESTRE_2026 | O126: 2_SEMESTRE_2028
A127: 21 | B127: Regione Lazio | C127: 05.AMBIENTE E RISORSE NATURALI | D127: 05.02 RISORSE IDRICHE | E127: F73J08000040001 | F127: Opere di collettamento e depurazione relativamente ai Poli di Civita Castellana, Sutri e Vignanello (I Lotto) - Adeguamento prezzi | G127: 27,857,000.00 € | H127: 8,000,000.00 € | I127: 19,857,000.00 € | J127: 1_SEMESTRE_2025 | K127: 2_SEMESTRE_2025 | L127: 2_SEMESTRE_2025 | M127: 2_SEMESTRE_2025 | N127: 1_SEMESTRE_2026 | O127: 2_SEMESTRE_2031
A128: 22 | B128: Regione Lazio | C128: 05.AMBIENTE E RISORSE NATURALI | D128: 05.01 RISCHI E ADATTAMENTO CLIMATICO | E128: F85D12000040002 | F128: Fosso di Pratolungo - Ripristino dell’officiosità idraulica e opere per l’accumulo e la laminazione delle piene - II lotto | G128: 14,581,898.45 € | H128: 6,267,164.89 € | I128: 8,314,733.56 € | J128: 1_SEMESTRE_2025 | K128: 2_SEMESTRE_2025 | L128: 2_SEMESTRE_2025 | M128: 2_SEMESTRE_2026 | N128: 1_SEMESTRE_2027 | O128: 2_SEMESTRE_2031
G129: =SUM(G5:G128) -> 1,956,442,702.51 € | H129: =SUM(H5:H128) -> 815,077,460.56 € | I129: =SUM(I5:I128) -> 1,141,365,241.95 €
E130: * | F130: Il COFINANZIAMENTO dell'intervento comprende la quota FSC erogata nell'Anticipazione di cui alla Delibera CIPESS n.79/2021 (allegato A2)

Sheet All_A2 ANT
A1: Accordo per la Coesione Governo - Regione Lazio Allegato A2 Elenco interventi finanziati in anticipazione FSC 21-27
A2: Valori in euro
A3: AreaTematica | B3: Linea di Intervento | C3: Cup | D3: Titolo | E3: Importo FSC 21-27 (anticipazione)
A4: 07.TRASPORTI E MOBILITÀ | B4: 07.01 TRASPORTO STRADALE | C4: G89J20001550002 | D4: Piano di Rinnovo della Flotta Cotral SpA - Accordo | E4: 26,474,000.00
A5: 07.TRASPORTI E MOBILITÀ | B5: 07.01 TRASPORTO STRADALE | C5: I80J21000030002 | D5: Ibridizzazione parziale della rimessa di Portonaccio | E5: 27,475,000.00
A6: 08.RIQUALIFICAZIONE URBANA | B6: 08.01 EDILIZIA E SPAZI PUBBLICI | C6: C87H23001330007 | D6: Accordo Quadro per l’affidamento dei lavori di completamento delle opere di urbanizzazione, primaria e secondaria, nel territorio di Roma Capitale LOTTO 3 - OG 08 SUBINTERVENTO B44 TORRESINA - VASCA DI LAMINAZIONE | E6: 2,000,000.00
A7: 08.RIQUALIFICAZIONE URBANA | B7: 08.01 EDILIZIA E SPAZI PUBBLICI | C7: C87H23001340007 | D7: Accordo Quadro per l’affidamento dei lavori di completamento delle opere di urbanizzazione, primaria e secondaria, nel territorio di Roma Capitale LOTTO 3 - OG 08 SUBINTERVENTO B49 PIANSACCOCCIA - VASCA DI LAMINAZIONE | E7: 900,000.00
A8: 08.RIQUALIFICAZIONE URBANA | B8: 08.01 EDILIZIA E SPAZI PUBBLICI | C8: C87H23001310007 | D8: Accordo Quadro per l’affidamento dei lavori di completamento delle opere di urbanizzazione, primaria e secondaria, nel territorio di Roma Capitale LOTTO 3 - OG 08 SUBINTERVENTO B50 MONTE STALLONARA - VASCA DI LAMINAZIONE | E8: 2,300,000.00
A9: 08.RIQUALIFICAZIONE URBANA | B9: 08.01 EDILIZIA E SPAZI PUBBLICI | C9: C87H23001320007 | D9: Accordo Quadro per l’affidamento dei lavori di completamento delle opere di urbanizzazione, primaria e secondaria, nel territorio di Roma Capitale LOTTO 1 - OG 03 SUBINTERVENTO B50 MONTE STALLONARA - REALIZZAZIONE ROTOTORIA | E9: 1,300,000.00
A10: 08.RIQUALIFICAZIONE URBANA | B10: 08.01 EDILIZIA E SPAZI PUBBLICI | C10: C87H23001350007 | D10: Accordo Quadro per l’affidamento dei lavori di completamento delle opere di urbanizzazione, primaria e secondaria, nel territorio di Roma Capitale LOTTO 1 - OG 03 SUBINTERVENTO B47 LA STORTA STAZIONE - COMPLETAMENTO SOVRASTRUTTURA STRADALE | E10: 800,000.00
A11: 08.RIQUALIFICAZIONE URBANA | B11: 08.01 EDILIZIA E SPAZI PUBBLICI | C11: C87H23001370007 | D11: Accordo Quadro per l’affidamento dei lavori di completamento delle opere di urbanizzazione, primaria e secondaria, nel territorio di Roma Capitale LOTTO 1 - OG 03 SUBINTERVENTO B04 CASTELVERDE - COMPLETAMENTO ASSE STRADALE VIA LBERTI | E11: 8,450,000.00
A12: 08.RIQUALIFICAZIONE URBANA | B12: 08.01 EDILIZIA E SPAZI PUBBLICI | C12: C87H23001360007 | D12: Accordo Quadro per l’affidamento dei lavori di completamento delle opere di urbanizzazione, primaria e secondaria, nel territorio di Roma Capitale LOTTO 2 - OG 06 SUBINTERVENTO B04 CASTELVERDE - FOGNATURA PUBBLICA VIA LIBERTI | E12: 2,600,000.00
A13: 08.RIQUALIFICAZIONE URBANA | B13: 08.01 EDILIZIA E SPAZI PUBBLICI | C13: C87H23001380007 | D13: Accordo Quadro per l’affidamento dei lavori di completamento delle opere di urbanizzazione, primaria e secondaria, nel territorio di Roma Capitale LOTTO 6 - OS 24 SUBINTERVENTO B04 CASTELVERDE - OPERE A VERDE VIA LIBERTI | E13: 500,000.00
A14: 12.CAPACITA' AMMINISTRATIVA | B14: 12.01 RAFFORZAMENTO PA | C14: F81I20000870009 | D14: SiGeM-Sistema Informativo di Gestione e Monitoraggio dei PO FSE e FESR Lazio. Realizzazione delle attività previste dalla fase 2 dello SFAT a valere sul POR FESR Lazio 2021-2027. | E14: 1,185,400.80
A15: 05.AMBIENTE E RISORSE NATURALI | B15: 05.01 RISCHI E ADATTAMENTO CLIMATICO | C15: F69J21002340005 | D15: Sistemazione idrogeologica del bacino del Torrente Borghetto | E15: 4,400,000.00
A16: 05.AMBIENTE E RISORSE NATURALI | B16: 05.01 RISCHI E ADATTAMENTO CLIMATICO | C16: C93H19000880001 | D16: ELIMINAZIONE DELLA PERICOLOSITA' IDRAULICA LUNGO IL CORSO DEL TORRENTE PONTONE | E16: 10,016,864.58
A17: 05.AMBIENTE E RISORSE NATURALI | B17: 05.01 RISCHI E ADATTAMENTO CLIMATICO | C17: H84H20000940001 | D17: Lavori di sistemazione idraulica del FOSSO PALIDORO o delle Cadute. | E17: 8,450,000.00
A18: 05.AMBIENTE E RISORSE NATURALI | B18: 05.01 RISCHI E ADATTAMENTO CLIMATICO | C18: F99J21001710005 | D18: IMPIANTO IDROVORO DI RIPASOTTILE I STRALCIO FUNZIONALE | E18: 4,046,703.66
A19: 05.AMBIENTE E RISORSE NATURALI | B19: 05.01 RISCHI E ADATTAMENTO CLIMATICO | C19: E86J17000230002 | D19: Problematiche idrauliche del fosso dell'Acqua Marciana | E19: 948,750.00
A20: 05.AMBIENTE E RISORSE NATURALI | B20: 05.01 RISCHI E ADATTAMENTO CLIMATICO | C20: E69D14001820002 | D20: Risanamento dissesto idrogeologico e messa in sicurezza versante ovest Piazza Forcella | E20: 853,000.00
A21: 05.AMBIENTE E RISORSE NATURALI | B21: 05.01 RISCHI E ADATTAMENTO CLIMATICO | C21: C39H09000160002 | D21: Sistemazione idraulica del fiume Salto in località Grotti di Borgorose | E21: 688,838.19
A22: 05.AMBIENTE E RISORSE NATURALI | B22: 05.01 RISCHI E ADATTAMENTO CLIMATICO | C22: F19J21002110005 | D22: IMPIANTO IDROVORO DI RIPASOTTILE III STRALCIO FUNZIONALE | E22: 500,000.00
A23: 05.AMBIENTE E RISORSE NATURALI | B23: 05.01 RISCHI E ADATTAMENTO CLIMATICO | C23: F19J21002170005 | D23: LAVORI DI SISTEMAZIONE IDRAULICA DEL FOSSO SECCO – 2° STRALCIO | E23: 436,585.60
A24: 05.AMBIENTE E RISORSE NATURALI | B24: 05.01 RISCHI E ADATTAMENTO CLIMATICO | C24: F99J21001720005 | D24: IMPIANTO IDROVORO DI RIPASOTTILE II STRALCIO FUNZIONALE | E24: 255,000.00
A25: 05.AMBIENTE E RISORSE NATURALI | B25: 05.01 RISCHI E ADATTAMENTO CLIMATICO | C25: F89D14001800002 | D25: LAVORI URGENTI DI MESSA IN SICUREZZA DISSESTO IDROGEOLOGICO NEL COMUNE DI ANAGNI VIA CONSOLAZIONE | E25: 1,047,351.46
A26: 05.AMBIENTE E RISORSE NATURALI | B26: 05.01 RISCHI E ADATTAMENTO CLIMATICO | C26: F11B15000840005 | D26: Stabilizzazione geomorfologica del versante nord | E26: 1,151,314.63
A27: 05.AMBIENTE E RISORSE NATURALI | B27: 05.01 RISCHI E ADATTAMENTO CLIMATICO | C27: I24H15000810002 | D27: Bonifica dissesto idrogeologico in prossimità di Via del Parione | E27: 480,000.00
A28: 05.AMBIENTE E RISORSE NATURALI | B28: 05.01 RISCHI E ADATTAMENTO CLIMATICO | C28: I23G15000300002 | D28: BONIFICA DISSESTO IDROGEOLOGICO IN PROSSIMITA' VIA MADONNA DEL GIGLIO | E28: 490,000.00
A29: 05.AMBIENTE E RISORSE NATURALI | B29: 05.01 RISCHI E ADATTAMENTO CLIMATICO | C29: F69J21002810005 | D29: Riduzione rischio idrogeologico nel capoluogo | E29: 800,000.00
A30: 05.AMBIENTE E RISORSE NATURALI | B30: 05.01 RISCHI E ADATTAMENTO CLIMATICO | C30: F69J19000640005 | D30: interventi per l'accessibilità loc. castello mediante messa in sicurezza versante sovrastante | E30: 1,756,722.89
A31: 05.AMBIENTE E RISORSE NATURALI | B31: 05.01 RISCHI E ADATTAMENTO CLIMATICO | C31: B86J17000520005 | D31: “OPERE DI COMPLETAMENTO PER LA RIDUZIONE DEL RISCHIO IDROGEOLOGICO IN LOCALITA’ “LA RIPA” | E31: 497,615.00
A32: 05.AMBIENTE E RISORSE NATURALI | B32: 05.01 RISCHI E ADATTAMENTO CLIMATICO | C32: E17D18000690005 | D32: LAVORI PER IL CONSOLIDAMENTO DELLA RUPE SOTTOSTANTE IL VECCHIO BORGO DI FALERIA | E32: 3,064,000.00
A33: 05.AMBIENTE E RISORSE NATURALI | B33: 05.01 RISCHI E ADATTAMENTO CLIMATICO | C33: F19J21002180005 | D33: messa in sicurezza e la stabilizzazione geomorfologica del versante roccioso che insiste sulla Via comunale Costarelle | E33: 500,000.00
A34: 05.AMBIENTE E RISORSE NATURALI | B34: 05.01 RISCHI E ADATTAMENTO CLIMATICO | C34: F39J21001990005 | D34: Protezione da crollo massi tratto di strada comunale S.Felice da Cantalice – Cittaducale capoluogo | E34: 500,000.00
A35: 05.AMBIENTE E RISORSE NATURALI | B35: 05.01 RISCHI E ADATTAMENTO CLIMATICO | C35: F39J21002000005 | D35: Intervento di sistemazione urgente del movimento franoso in Loc. Fontana del Diavolo | E35: 500,000.00
A36: 05.AMBIENTE E RISORSE NATURALI | B36: 05.01 RISCHI E ADATTAMENTO CLIMATICO | C36: F89J21005260005 | D36: Intervento di difesa del suolo del versante in località Villa Tortima | E36: 421,151.67
A37: 05.AMBIENTE E RISORSE NATURALI | B37: 05.01 RISCHI E ADATTAMENTO CLIMATICO | C37: H83H20000080001 | D37: Messa in sicurezza in emergenza del dissesto gravitativo nei pressi del centro abitato del Comune di Guarcino | E37: 500,000.00
A38: 05.AMBIENTE E RISORSE NATURALI | B38: 05.01 RISCHI E ADATTAMENTO CLIMATICO | C38: F19J21002190005 | D38: Messa in sicurezza del centro abitato in comune di Casape in loc. Prata | E38: 500,000.00
A39: 05.AMBIENTE E RISORSE NATURALI | B39: 05.01 RISCHI E ADATTAMENTO CLIMATICO | C39: F89J21005270005 | D39: lavori di attenuazione del dissesto idrogeologico in atto in viale Trieste, Via Monte Cervia e Centro Abitato | E39: 357,744.32
A40: 05.AMBIENTE E RISORSE NATURALI | B40: 05.01 RISCHI E ADATTAMENTO CLIMATICO | C40: C16J17000130009 | D40: interventi di protezione della zona nord-ovest del centro abitato di Civitella Cesi, una frazione del Comune di Blera | E40: 499,000.00
A41: 05.AMBIENTE E RISORSE NATURALI | B41: 05.01 RISCHI E ADATTAMENTO CLIMATICO | C41: F69J21002820005 | D41: messa in sicurezza attraverso interventi di difesa del suolo di un versante in dissesto, al lato di Via Santa Maria del Monte, nel Comune di Cave | E41: 500,000.00
A42: 05.AMBIENTE E RISORSE NATURALI | B42: 05.01 RISCHI E ADATTAMENTO CLIMATICO | C42: C74J19000010002 | D42: lavori di mitigazione del rischio idrogeologico a valle di Via della Conciliazione | E42: 220,269.46
A43: 05.AMBIENTE E RISORSE NATURALI | B43: 05.01 RISCHI E ADATTAMENTO CLIMATICO | C43: F19J21002200005 | D43: Opere per la mitigazione del rischio idrogeologico in località Cantarelle | E43: 346,680.97
A44: 05.AMBIENTE E RISORSE NATURALI | B44: 05.01 RISCHI E ADATTAMENTO CLIMATICO | C44: B47D19000200002 | D44: interventi di mitigazione del rischio idrogeologico per la difesa del suolo e la messa in sicurezza del territorio in vari ambiti del comune di Calcata | E44: 400,000.00
A45: 05.AMBIENTE E RISORSE NATURALI | B45: 05.01 RISCHI E ADATTAMENTO CLIMATICO | C45: B12H19000030002 | D45: Lavori di messa in sicurezza del fosso Monacino-Mandrinello al fine di assicurare la salvaguardia delle infrastrutture adiacenti ed una maggiore sicurezza per l'abitato in località “Ponte Romano con ripristino delle opere di protezione. | E45: 485,246.53
A46: 05.AMBIENTE E RISORSE NATURALI | B46: 05.01 RISCHI E ADATTAMENTO CLIMATICO | C46: F79J21002060005 | D46: Intervento per la mess ain sicurezza dell'area in frana lungo la strada comunale Via Vigna | E46: 148,433.07
A47: 05.AMBIENTE E RISORSE NATURALI | B47: 05.01 RISCHI E ADATTAMENTO CLIMATICO | C47: F29J19000670005 | D47: Intervento di messa in sicurezza sul versante nord ovest del centro storico di Morolo | E47: 418,141.52
A48: 05.AMBIENTE E RISORSE NATURALI | B48: 05.01 RISCHI E ADATTAMENTO CLIMATICO | C48: J32H19000060002 | D48: Opere necessarie alla mitigazione del rischio idrogeologico lungo via Aldo Moro | E48: 345,561.46
A49: 05.AMBIENTE E RISORSE NATURALI | B49: 05.01 RISCHI E ADATTAMENTO CLIMATICO | C49: F49J19000670005 | D49: Messa in sicurezza costone roccioso area in frana frazione di Civitella lungo via della Torre | E49: 164,500.00
A50: 05.AMBIENTE E RISORSE NATURALI | B50: 05.01 RISCHI E ADATTAMENTO CLIMATICO | C50: F59J19000590005 | D50: Interventi di mitigazione del rischio idrogeologico che interessano la strada comunale dell'Ara della Chiesa e la strada comunale di Valenza | E50: 500,000.00
A51: 05.AMBIENTE E RISORSE NATURALI | B51: 05.01 RISCHI E ADATTAMENTO CLIMATICO | C51: F87H21007860005 | D51: Lavori di recupero della funzionalità idraulica del reticolo idrografico del bacino a scolo meccanico di Quartaccio, sotteso all'impianto idrovoro di Mazzocchio, nei Comuni di Pontinia e Sezze. I Stralcio funzionale | E51: 1,920,931.62
A52: 05.AMBIENTE E RISORSE NATURALI | B52: 05.01 RISCHI E ADATTAMENTO CLIMATICO | C52: F87H21007870005 | D52: Lavori di recupero della funzionalità idraulica del reticolo idrografico del bacino a scolo meccanico di Quartaccio, sotteso all'impianto idrovoro di Mazzocchio, nei Comuni di Pontinia e Sezze. II Stralcio funzionale | E52: 3,005,728.51
A53: 05.AMBIENTE E RISORSE NATURALI | B53: 05.01 RISCHI E ADATTAMENTO CLIMATICO | C53: F17H21004950005 | D53: Lavori di recupero della funzionalità idraulica del reticolo idrografico del bacino a scolo meccanico di Quartaccio, sotteso all'impianto idrovoro di Mazzocchio, nei Comuni di Pontinia e Sezze. III Stralcio funzionale | E53: 2,513,762.19
A54: 05.AMBIENTE E RISORSE NATURALI | B54: 05.01 RISCHI E ADATTAMENTO CLIMATICO | C54: F47H11001950005 | D54: Sistemazione idraulica torrenti Canera e La Riana | E54: 472,045.80
A55: 05.AMBIENTE E RISORSE NATURALI | B55: 05.01 RISCHI E ADATTAMENTO CLIMATICO | C55: F37H11002470005 | D55: Lavori urgenti ed indifferibili per il ripristino degli argini del torrente Canera | E55: 103,149.06
A56: 05.AMBIENTE E RISORSE NATURALI | B56: 05.01 RISCHI E ADATTAMENTO CLIMATICO | C56: F17H11002200005 | D56: Lavori di manutenzione straordinaria per il ripristino dell'alveo del Fosso La Riana | E56: 184,000.00
A57: 05.AMBIENTE E RISORSE NATURALI | B57: 05.01 RISCHI E ADATTAMENTO CLIMATICO | C57: F37H21005310005 | D57: Mitigazione del rischio idrogeologico del fosso San Lorenzo - Comune di Contigliano | E57: 158,000.00
A58: 05.AMBIENTE E RISORSE NATURALI | B58: 05.01 RISCHI E ADATTAMENTO CLIMATICO | C58: F27H21006350005 | D58: Mitigazione del rischio idrogeologico del fosso Rivodutri - Comune di Rivodutri | E58: 177,000.00
A59: 05.AMBIENTE E RISORSE NATURALI | B59: 05.01 RISCHI E ADATTAMENTO CLIMATICO | C59: F97H21005590005 | D59: Mitigazione del rischio idrogeologico del fosso Collemare, Collemaggiore e Fileci - Comune di Greccio | E59: 248,000.00
A60: 05.AMBIENTE E RISORSE NATURALI | B60: 05.01 RISCHI E ADATTAMENTO CLIMATICO | C60: F57H21004030005 | D60: Mitigazione del rischio idrogeologico del fosso Rio Grande - Comune di Cantalice | E60: 168,000.00
A61: 05.AMBIENTE E RISORSE NATURALI | B61: 05.01 RISCHI E ADATTAMENTO CLIMATICO | C61: F57H21004040005 | D61: Mitigazione del rischio idrogeologico del fosso Capodacqua - Comune di Cantalice | E61: 189,000.00
A62: 05.AMBIENTE E RISORSE NATURALI | B62: 05.01 RISCHI E ADATTAMENTO CLIMATICO | C62: F27H21006360005 | D62: Nuova inalveazione del fosso Sermida | E62: 443,315.06
A63: 05.AMBIENTE E RISORSE NATURALI | B63: 05.01 RISCHI E ADATTAMENTO CLIMATICO | C63: F21B21004070005 | D63: Ripristino Officiosità Idraulica del Fosso della Cavallaccia | E63: 348,500.00
A64: 05.AMBIENTE E RISORSE NATURALI | B64: 05.01 RISCHI E ADATTAMENTO CLIMATICO | C64: F21B21004080005 | D64: Ripristino Officiosità Idraulica del Fosso della Melona | E64: 445,000.00
A65: 05.AMBIENTE E RISORSE NATURALI | B65: 05.01 RISCHI E ADATTAMENTO CLIMATICO | C65: F51B21004120005 | D65: Ripristino Officiosità Idraulica del Fosso delle Vene | E65: 349,500.00
A66: 05.AMBIENTE E RISORSE NATURALI | B66: 05.01 RISCHI E ADATTAMENTO CLIMATICO | C66: F81B21005730005 | D66: Ripristino Officiosità Idraulica del Fosso del Piscero | E66: 427,600.00
A67: 05.AMBIENTE E RISORSE NATURALI | B67: 05.01 RISCHI E ADATTAMENTO CLIMATICO | C67: F71B21004260005 | D67: Ripristino Officiosità Idraulica del Fosso Giomentini | E67: 348,600.00
A68: 05.AMBIENTE E RISORSE NATURALI | B68: 05.01 RISCHI E ADATTAMENTO CLIMATICO | C68: F71B21004270005 | D68: Ripristino Officiosità Idraulica del Fosso Spinetto | E68: 246,300.00
A69: 05.AMBIENTE E RISORSE NATURALI | B69: 05.01 RISCHI E ADATTAMENTO CLIMATICO | C69: F41B21006200005 | D69: Ripristino Officiosità Idraulica del Fosso San Biagio | E69: 445,600.00
A70: 05.AMBIENTE E RISORSE NATURALI | B70: 05.01 RISCHI E ADATTAMENTO CLIMATICO | C70: C52I19000330005 | D70: MESSA IN SICUREZZA DEL VERSANTE IDRAULICO DESTRO DELL'ALVEO DEL FOSSO RIPA PER FRANA IN ATTO E SISTEMAZIONE DEL PIAZZALE SOVRASTANTE | E70: 500,000.00
A71: 05.AMBIENTE E RISORSE NATURALI | B71: 05.01 RISCHI E ADATTAMENTO CLIMATICO | C71: F31B13001370005 | D71: Sistemazione idraulica del Rio Corvo in agro di Sant'Angelo in Theodice nel Comune di Cassino | E71: 591,642.00
A72: 05.AMBIENTE E RISORSE NATURALI | B72: 05.01 RISCHI E ADATTAMENTO CLIMATICO | C72: F11B14000980005 | D72: Sistemazione idraulica del fosso della Zoppa nel comune di Arce | E72: 1,024,221.56
A73: 05.AMBIENTE E RISORSE NATURALI | B73: 05.01 RISCHI E ADATTAMENTO CLIMATICO | C73: F41B14000770005 | D73: Progetto di sistemazione idraulica del Rio Martinello nel Comune di Sant'Andrea del Garigliano | E73: 920,000.00
A74: 05.AMBIENTE E RISORSE NATURALI | B74: 05.01 RISCHI E ADATTAMENTO CLIMATICO | C74: F11B14000990005 | D74: Sistemazione idraulica delle forme di Aquino nei comuni di Castrocielo, Aquino, Pontecorvo e altri | E74: 1,536,000.00
A75: 05.AMBIENTE E RISORSE NATURALI | B75: 05.01 RISCHI E ADATTAMENTO CLIMATICO | C75: F31B15000470005 | D75: Sistemazione idraulica del fosso Capo d'Acqua nel comune di Cassino | E75: 327,000.00
A76: 05.AMBIENTE E RISORSE NATURALI | B76: 05.01 RISCHI E ADATTAMENTO CLIMATICO | C76: F11B21007130005 | D76: Sistemazione idraulica del fosso Secco - Lotto n.124 - 2 ° stralcio | E76: 1,777,666.00
A77: 05.AMBIENTE E RISORSE NATURALI | B77: 05.01 RISCHI E ADATTAMENTO CLIMATICO | C77: F11B21007140005 | D77: Sistemazione idraulica del fosso Secco - Lotto n.124 - 3 ° stralcio | E77: 2,475,545.00
A78: 07.TRASPORTI E MOBILITÀ | B78: 07.01 TRASPORTO STRADALE | C78: C77H21001950002 | D78: Manutenzione rete stradale - Comune di Fondi. Viabilità comunale | E78: 144,817.10
A79: 07.TRASPORTI E MOBILITÀ | B79: 07.01 TRASPORTO STRADALE | C79: C57H23000240003 | D79: Manutenzione rete stradale - Comune di Coreno Ausonio. Viabilità comunale | E79: 175,239.68
A80: 07.TRASPORTI E MOBILITÀ | B80: 07.01 TRASPORTO STRADALE | C80: C47H21004180002 | D80: Manutenzione rete stradale - Comune di Maenza. Viabilità comunale | E80: 165,939.20
A81: 07.TRASPORTI E MOBILITÀ | B81: 07.01 TRASPORTO STRADALE | C81: C37H21005690002 | D81: Manutenzione rete stradale - Comune di Castel Madama. Viabilità comunale | E81: 168,666.43
A82: 07.TRASPORTI E MOBILITÀ | B82: 07.01 TRASPORTO STRADALE | C82: C97H21003240002 | D82: Manutenzione rete stradale - Comune di San Vittore. Viabilità comunale | E82: 167,551.89
A83: 07.TRASPORTI E MOBILITÀ | B83: 07.01 TRASPORTO STRADALE | C83: C67H21003550002 | D83: Manutenzione rete stradale - Comune di Ripi. Viabilità comunale | E83: 160,775.64
A84: 07.TRASPORTI E MOBILITÀ | B84: 07.01 TRASPORTO STRADALE | C84: C77H21002030002 | D84: Manutenzione rete stradale - Comune di Ischia di Castro. Viabilità comunale | E84: 134,874.55
A85: 07.TRASPORTI E MOBILITÀ | B85: 07.01 TRASPORTO STRADALE | C85: C47H21004240002 | D85: Manutenzione rete stradale - Comune di Cittareale. Viabilità comunale | E85: 164,397.44
A86: 07.TRASPORTI E MOBILITÀ | B86: 07.01 TRASPORTO STRADALE | C86: C67H21003590002 | D86: Manutenzione rete stradale - Comune di Esperia. Viabilità comunale | E86: 171,967.82
A87: 07.TRASPORTI E MOBILITÀ | B87: 07.01 TRASPORTO STRADALE | C87: C57H21003370002 | D87: Manutenzione rete stradale - Comune di Canale Monterano. Viabilità comunale | E87: 200,000.00
A88: 07.TRASPORTI E MOBILITÀ | B88: 07.01 TRASPORTO STRADALE | C88: C17H21006030002 | D88: Manutenzione rete stradale - Comune di Frascati. Via Vigne SS Apostoli inters. Fosso del Collo Reti | E88: 100,000.00
A89: 07.TRASPORTI E MOBILITÀ | B89: 07.01 TRASPORTO STRADALE | C89: C67H21003650002 | D89: Manutenzione rete stradale - Comune Poggio Nativo. Viabilità comunale-Pavimentazione centro storico | E89: 143,841.76
A90: 07.TRASPORTI E MOBILITÀ | B90: 07.01 TRASPORTO STRADALE | C90: C87H21003100002 | D90: Manutenzione rete stradale - Comune di Grottaferrata. Rifacimento via Vicinale della Macchia | E90: 129,472.83
A91: 07.TRASPORTI E MOBILITÀ | B91: 07.01 TRASPORTO STRADALE | C91: C77H21002110002 | D91: Manutenzione rete stradale - Comune di Nettuno. Sicurezza Stradale (Autovelox) | E91: 46,442.37
A92: 07.TRASPORTI E MOBILITÀ | B92: 07.01 TRASPORTO STRADALE | C92: C87H21003110002 | D92: Manutenzione rete stradale - Comune di Broccostella. Messa in sicurezza marciapiedi Via Stella | E92: 248,487.30
A93: 07.TRASPORTI E MOBILITÀ | B93: 07.01 TRASPORTO STRADALE | C93: C77H21002160002 | D93: Manutenzione rete stradale - Comune di Amaseno. Messa in sicurezza Via A. Moro e Via Don L. Sturzo | E93: 264,949.45
A94: 07.TRASPORTI E MOBILITÀ | B94: 07.01 TRASPORTO STRADALE | C94: C17H21006170002 | D94: Manutenzione rete stradale - Comune Marta. Messa in sicurezza strada comunale Ceraso | E94: 166,837.55
A95: 07.TRASPORTI E MOBILITÀ | B95: 07.01 TRASPORTO STRADALE | C95: C57H21003500002 | D95: Manutenzione rete stradale - Comune di Anzio. Strade comunali Macchiavelli - Malgotti | E95: 237,762.25
A96: 07.TRASPORTI E MOBILITÀ | B96: 07.01 TRASPORTO STRADALE | C96: C27H21003640002 | D96: Manutenzione rete stradale - Comune di Vicovaro. Strada vicinale ColleRosso | E96: 300,000.00
A97: 07.TRASPORTI E MOBILITÀ | B97: 07.01 TRASPORTO STRADALE | C97: C67H21003670002 | D97: Manutenzione rete stradale - Comune di Trevignano Romano. Via Mezzo Inferiore e Superiore | E97: 194,163.18
A98: 07.TRASPORTI E MOBILITÀ | B98: 07.01 TRASPORTO STRADALE | C98: C87H21003120002 | D98: Manutenzione rete stradale - Comune Cervara di Roma. Viabilità comunale | E98: 71,659.90
A99: 07.TRASPORTI E MOBILITÀ | B99: 07.01 TRASPORTO STRADALE | C99: C27H21003580002 | D99: Manutenzione rete stradale - Comune di Leonessa. Ristrutt. urbanistica e di strade comunali | E99: 219,582.39
A100: 07.TRASPORTI E MOBILITÀ | B100: 07.01 TRASPORTO STRADALE | C100: C37H21005800002 | D100: Manutenzione rete stradale - Comune di Cassino. Manto stradale viabilità comunale | E100: 165,831.98
A101: 07.TRASPORTI E MOBILITÀ | B101: 07.02 TRASPORTO FERROVIARIO | C101: I89B00000000003 | D101: EX CONCESSE RV (ADEGUAMENTO PREZZI) - RADDOPPIO STAZIONE P.LE FLAMINIO (*) | E101: 25,968,085.86
A102: 07.TRASPORTI E MOBILITÀ | B102: 07.02 TRASPORTO FERROVIARIO | C102: F74F08000030009 | D102: EX CONCESSE RV (ADEGUAMENTO PREZZI) - OPERE PER IL RADDOPPIO DELLA TRATTA RIANO-CASTELNUOVO-MORLUPO - I Tranche (*) | E102: 19,810,314.41
E103: =SUM(E4:E102) -> 192,241,643.59
A107: * Il COFINANZIAMENTO dell'intervento comprende anche la quota FSC riportata nell'assegnazione ordinaria (allegato B2)

Sheet ALL_B1 ORD
A1: Accordo per la Coesione Governo - Regione Lazio Allegato B1 - Piano finanziario di spesa dell’Accordo per annualità (solo quota FSC 21-27 ordinaria)
A2: Valori in euro
B3: 2024 | C3: 2025 | D3: 2026 | E3: 2027 | F3: 2028 | G3: 2029 | H3: 2030 | I3: 2031 | J3: TOTALE
A4: Assegnazione ordinaria FSC 21-27 ex Ante | B4: 17,066,831.06 | C4: 87,081,470.30 | D4: 148,908,006.43 | E4: 171,643,699.57 | F4: 137,663,803.75 | G4: 119,893,354.95 | H4: 79,800,294.50 | I4: 53,020,000.00 | J4: =SUM(B4:I4) -> 815,077,460.56
A5: Assegnazione ordinaria FSC 21-27 ex Post | B5: 17,066,831.06 | C5: 71,081,470.30 | D5: 132,158,006.43 | E5: 178,493,699.57 | F5: 139,813,803.75 | G5: 123,643,354.95 | H5: 98,300,294.50 | I5: 54,520,000.00 | J5: =SUM(B5:I5) -> 815,077,460.56

Sheet ALL_B2 ORD
A1: Accordo per la Coesione Governo - Regione Lazio Allegato B2 - Piano finanziario di spesa per singolo intervento (solo quota FSC 21-27 ordinaria)
A2: Valori in euro
A3: ID | B3: AMMINISTRAZIONE | C3: AREA TEMATICA | D3: LINEA DI INTERVENTO | E3: CUP | F3: TITOLO | G3: COSTO TOTALE | H3: IMPORTO RICHIESTO FSC 21-27 | I3: COFINANZIAMENTO CON ALTRE RISORSE | J3: 2023 | K3: 2024 | L3: 2025 | M3: 2026 | N3: 2027 | O3: 2028 | P3: 2029 | Q3: 2030 | R3: 2031 | S3: 2032 | T3: 2033 | U3: 2034
A4: FSCRI_RI_112 | B4: RFI S.P.A. | C4: 07.TRASPORTI E MOBILITÀ | D4: 07.02 TRASPORTO FERROVIARIO | E4: F54J22000250002 | F4: FERROVIA ROMA-VITERBO - NUOVO IMPIANTO DI SEGNALAMENTO DI TERRA ERTMS-L2 | G4: 160,000,000.00 € | H4: 160,000,000.00 € | K4: 0.00 € | L4: 0.00 € | M4: 16,000,000.00 € | N4: 25,000,000.00 € | O4: 25,000,000.00 € | P4: 30,000,000.00 € | Q4: 37,000,000.00 € | R4: 27,000,000.00 €
A5: FSCRI_RI_116 | B5: ASTRAL S.P.A. | C5: 07.TRASPORTI E MOBILITÀ | D5: 07.02 TRASPORTO FERROVIARIO | E5: F74F08000030009 | F5: EX CONCESSE RV (ADEGUAMENTO PREZZI) - OPERE PER IL RADDOPPIO DELLA TRATTA RIANO-CASTELNUOVO-MORLUPO - II tranche (*) | G5: 165,706,067.13 € | H5: 12,538,419.72 € | I5: 153,167,647.41 € | L5: 3,000,000.00 € | M5: 7,038,419.72 € | N5: 2,500,000.00 €
A6: FSCRI_RI_119 | B6: REGIONE LAZIO | C6: 07.TRASPORTI E MOBILITÀ | D6: 07.02 TRASPORTO FERROVIARIO | E6: F70B18000000003 | F6: FERROVIA ROMA-VITERBO - IMPIANTO DI SEGNALAMENTO TRAIN STOP A BORDO DEI NUOVI TRENI | G6: 6,300,000.00 € | H6: 6,300,000.00 € | K6: 0.00 € | L6: 0.00 € | M6: 0.00 € | N6: 1,750,000.00 € | O6: 2,000,000.00 € | P6: 2,550,000.00 € | Q6: 0.00 € | R6: 0.00 €
A7: FSCRI_RI_128 | B7: ASTRAL S.P.A. | C7: 07.TRASPORTI E MOBILITÀ | D7: 07.02 TRASPORTO FERROVIARIO | E7: C71G22000060006 | F7: EX CONCESSE RV (ADEGUAMENTO PREZZI) - OPERE PER LA PREDISPOSIZIONE RADDOPPIO TRATTA MONTEBELLO-RIANO | G7: 27,607,995.05 € | H7: 2,599,756.05 € | I7: 25,008,239.00 € | L7: 400,000.00 € | M7: 1,500,000.00 € | N7: 699,756.05 €
A8: FSCRI_RI_132 | B8: REGIONE LAZIO | C8: 07.TRASPORTI E MOBILITÀ | D8: 07.02 TRASPORTO FERROVIARIO | E8: F70B18000000003 | F8: FERROVIA ROMA-VITERBO - IMPIANTI DI SEGNALAMENTO ERTMS-L2 A BORDO DEI NUOVI TRENI | G8: 16,200,000.00 € | H8: 16,200,000.00 € | K8: 0.00 € | L8: 0.00 € | M8: 0.00 € | N8: 1,800,000.00 € | O8: 4,400,000.00 € | P8: 5,000,000.00 € | Q8: 5,000,000.00 € | R8: 0.00 €
A9: FSCRI_RI_134 | B9: ASTRAL S.P.A. | C9: 07.TRASPORTI E MOBILITÀ | D9: 07.02 TRASPORTO FERROVIARIO | E9: I89B09000100002 | F9: EX CONCESSE RV (ADEGUAMENTO PREZZI) - RADDOPPIO TRATTA MONTEBELLO - RIANO | G9: 71,382,998.85 € | H9: 9,158,813.85 € | I9: 62,224,185.00 € | M9: 3,000,000.00 € | N9: 3,000,000.00 € | O9: 3,158,813.85 €
A10: FSCRI_RI_139 | B10: REGIONE LAZIO | C10: 07.TRASPORTI E MOBILITÀ | D10: 07.02 TRASPORTO FERROVIARIO | E10: F70B18000000003 | F10: FERROVIA ROMA-VITERBO - IMPIANTI DI SEGNALAMENTO ERTMS-L2 A BORDO DEI TRENI ESISTENTI | G10: 6,400,000.00 € | H10: 6,400,000.00 € | K10: 0.00 € | L10: 0.00 € | M10: 0.00 € | N10: 3,200,000.00 € | O10: 3,200,000.00 € | P10: 0.00 € | Q10: 0.00 € | R10: 0.00 €
A11: FSCRI_RI_144 | B11: ASTRAL S.P.A. | C11: 07.TRASPORTI E MOBILITÀ | D11: 07.02 TRASPORTO FERROVIARIO | E11: I81C06000070002 | F11: EX CONCESSE RL (VARIANTE E ADEGUAMENTO PREZZI) - STAZIONE ACILIA SUD E FABBRICATO VIAGGIATORI TOR DI VALLE | G11: 11,979,980.22 € | H11: 3,379,980.22 € | I11: 8,600,000.00 € | L11: 1,379,980.22 € | M11: 2,000,000.00 €
A12: FSCRI_RI_157 | B12: RFI S.P.A. | C12: 07.TRASPORTI E MOBILITÀ | D12: 07.02 TRASPORTO FERROVIARIO | E12: J87F19000700001 | F12: EX CONCESSE RL (ADEGUAMENTO PREZZI) - LAVORI TECNOLOGICI | G12: 100,991,476.00 € | H12: 26,991,476.00 € | I12: 74,000,000.00 € | L12: 2,000,000.00 € | M12: 13,000,000.00 € | N12: 11,991,476.00 €
A13: FSCRI_RI_158 | B13: ASTRAL S.P.A. | C13: 07.TRASPORTI E MOBILITÀ | D13: 07.02 TRASPORTO FERROVIARIO | E13: C87D24000040001 | F13: FERROVIA ROMA-VITERBO - RINNOVO TE TRATTA EXTRAURBANA CATALANO - VITERBO | G13: 33,000,000.00 € | H13: 33,000,000.00 € | M13: 1,300,000.00 € | N13: 5,000,000.00 € | O13: 5,700,000.00 € | P13: 9,000,000.00 € | Q13: 9,000,000.00 € | R13: 3,000,000.00 €
A14: FSCRI_RI_159 | B14: ASTRAL S.P.A. | C14: 07.TRASPORTI E MOBILITÀ | D14: 07.02 TRASPORTO FERROVIARIO | E14: C87D22000050002 | F14: EX CONCESSE RL (ADEGUAMENTO PREZZI) - RIQUALIFICAZIONE STAZIONE DI CASTEL FUSANO | G14: 1,584,018.27 € | H14: 121,799.27 € | I14: 1,462,219.00 € | L14: 121,799.27 €
A15: FSCRI_RI_161 | B15: ASTRAL S.P.A. | C15: 07.TRASPORTI E MOBILITÀ | D15: 07.02 TRASPORTO FERROVIARIO | E15: C77D24000000001 | F15: FERROVIA ROMA-VITERBO - POTENZIAMENTO ALIMENTAZIONE ELETTRICA | G15: 12,000,000.00 € | H15: 12,000,000.00 € | L15: 1,200,000.00 € | M15: 3,800,000.00 € | N15: 5,000,000.00 € | O15: 2,000,000.00 €
A16: FSCRI_RI_162 | B16: ASTRAL S.P.A. | C16: 07.TRASPORTI E MOBILITÀ | D16: 07.02 TRASPORTO FERROVIARIO | E16: C87D24000050001 | F16: FERROVIA ROMA-VITERBO - RINNOVO ARMAMENTO NELLA GALLERIA FLAMINIO - ACQUA ACETOSA | G16: 16,000,000.00 € | H16: 16,000,000.00 € | L16: 200,000.00 € | M16: 3,200,000.00 € | N16: 4,200,000.00 € | O16: 4,400,000.00 € | P16: 4,000,000.00 €
A17: FSCRI_RI_163 | B17: ASTRAL S.P.A. | C17: 07.TRASPORTI E MOBILITÀ | D17: 07.02 TRASPORTO FERROVIARIO | E17: C77D24000010001 | F17: FERROVIA ROMA-VITERBO - RINNOVO ARMAMENTO TRATTA URBANA | G17: 12,000,000.00 € | H17: 12,000,000.00 € | L17: 1,200,000.00 € | M17: 2,000,000.00 € | N17: 6,000,000.00 € | O17: 2,800,000.00 €
A18: FSCRI_RI_164 | B18: ASTRAL S.P.A. | C18: 07.TRASPORTI E MOBILITÀ | D18: 07.02 TRASPORTO FERROVIARIO | E18: C77D24000020001 | F18: FERROVIA ROMA-VITERBO - RINNOVO ARMAMENTO TRATTA EXTRAURBANA | G18: 20,000,000.00 € | H18: 20,000,000.00 € | L18: 2,000,000.00 € | M18: 3,000,000.00 € | N18: 12,000,000.00 € | O18: 3,000,000.00 €
A19: FSCRI_RI_165 | B19: ASTRAL S.P.A. | C19: 07.TRASPORTI E MOBILITÀ | D19: 07.02 TRASPORTO FERROVIARIO | E19: C87D24000060001 | F19: FERROVIA ROMA-VITERBO - ADEGUAMENTO NORMATIVO GALLERIA P.LE FLAMINIO - ACQUA ACETOSA | G19: 10,000,000.00 € | H19: 10,000,000.00 € | K19: 1,000,000.00 € | L19: 400,000.00 € | M19: 2,000,000.00 € | N19: 3,000,000.00 € | O19: 2,600,000.00 € | P19: 1,000,000.00 €
A20: FSCRI_RI_166 | B20: ASTRAL S.P.A. | C20: 07.TRASPORTI E MOBILITÀ | D20: 07.02 TRASPORTO FERROVIARIO | E20: C87D24000070001 | F20: FERROVIA ROMA-VITERBO - ALZAMENTO BANCHINA P.LE FLAMINIO | G20: 2,000,000.00 € | H20: 2,000,000.00 € | K20: 200,000.00 € | L20: 200,000.00 € | M20: 1,600,000.00 €
A21: FSCRI_RI_167 | B21: ASTRAL S.P.A. | C21: 07.TRASPORTI E MOBILITÀ | D21: 07.02 TRASPORTO FERROVIARIO | E21: C87D24000080001 | F21: FERROVIA ROMA-VITERBO - MANUTENZIONE STRAORDINARIA IMPIANTI DI TRASLO ELEVAZIONE | G21: 2,000,000.00 € | H21: 2,000,000.00 € | K21: 200,000.00 € | L21: 600,000.00 € | M21: 600,000.00 € | N21: 600,000.00 €
A22: FSCRI_RI_168 | B22: ASTRAL S.P.A. | C22: 07.TRASPORTI E MOBILITÀ | D22: 07.02 TRASPORTO FERROVIARIO | E22: C77D24000030001 | F22: FERROVIA ROMA-VITERBO - INTERVENTI DI ADEGUAMENTO SISMICO | G22: 5,000,000.00 € | H22: 5,000,000.00 € | K22: 1,000,000.00 € | L22: 3,000,000.00 € | M22: 1,000,000.00 € | N22: 0.00 € | O22: 0.00 € | P22: 0.00 € | Q22: 0.00 € | R22: 0.00 €
A23: FSCRI_RI_200 | B23: ATINA COMUNE | C23: 07.TRASPORTI E MOBILITÀ | D23: 07.01 TRASPORTO STRADALE | E23: J47H18002040002 | F23: SNAI 2014-2020 - RIQUALIFICAZIONE DI ALCUNI TRATTI DELLA VIABILITÀ STRADALE DELL'AREA | G23: 770,000.00 € | H23: 770,000.00 € | N23: 77,000.00 € | O23: 308,000.00 € | P23: 231,000.00 € | Q23: 154,000.00 €
A24: FSCRI_RI_202 | B24: ANIENE X COMUNITÀ MONTANA | C24: 07.TRASPORTI E MOBILITÀ | D24: 07.01 TRASPORTO STRADALE | E24: D67H21009500003 | F24: SNAI 2014-2020 - MANUTENZIONE STRAORDINARIA STRADA COMUNALE LOCALITÀ LA SELVA | G24: 80,835.04 € | H24: 80,835.04 € | M24: 16,167.00 € | N24: 64,668.04 €
A25: FSCRI_RI_203 | B25: ANIENE X COMUNITÀ MONTANA | C25: 07.TRASPORTI E MOBILITÀ | D25: 07.01 TRASPORTO STRADALE | E25: D27H21009540002 | F25: SNAI 2014-2020 - RIQUALIFICAZIONE DELLA VIABILITÀ DI ACCESSO ALLA FORESTA LAGO NEL COMUNE DI PERCILE | G25: 100,000.00 € | H25: 100,000.00 € | M25: 20,000.00 € | N25: 80,000.00 €
A26: FSCRI_RI_204 | B26: ATINA COMUNE | C26: 06.CULTURA | D26: 06.01 PATRIMONIO E PAESAGGIO | E26: J43J18000110002 | F26: SNAI 2014-2020 - VALORIZZAZIONE DEL SISTEMA MUSEALE DELLA VALLE DI COMINO: CONVENTO DI SAN FRANCESCO | G26: 150,000.00 € | H26: 150,000.00 € | M26: 15,000.00 € | N26: 30,000.00 € | O26: 45,000.00 € | P26: 60,000.00 €
A27: FSCRI_RI_205 | B27: ANIENE X COMUNITÀ MONTANA | C27: 08.RIQUALIFICAZIONE URBANA | D27: 08.01 EDILIZIA E SPAZI PUBBLICI | E27: D32B21000020002 | F27: SNAI 2014-2020 - VALORIZZAZIONE EX SCUOLA MATERNA IN CENTRO POLIFUNZIONALE COMUNE DI VIVARO ROMANO | G27: 120,000.00 € | H27: 120,000.00 € | M27: 12,000.00 € | N27: 70,000.00 € | O27: 38,000.00 €
A28: FSCRI_RI_206 | B28: ANIENE X COMUNITÀ MONTANA | C28: 06.CULTURA | D28: 06.01 PATRIMONIO E PAESAGGIO | E28: D37B21000040002 | F28: SNAI 2014-2020 - SCAVI E ACCESSO A CAMERATA VECCHIA | G28: 50,000.00 € | H28: 50,000.00 € | M28: 10,000.00 € | N28: 40,000.00 €
A29: FSCRI_RI_208 | B29: ANIENE X COMUNITÀ MONTANA | C29: 06.CULTURA | D29: 06.01 PATRIMONIO E PAESAGGIO | E29: D42F21000180002 | F29: SNAI 2014-2020 - MUSEO D'ARTE MODERNA E CONTEMPORANEA DI ANTICOLI CORRADO | G29: 200,000.00 € | H29: 200,000.00 € | M29: 20,000.00 € | N29: 100,000.00 € | O29: 80,000.00 €
A30: FSCRI_RI_209 | B30: VALLE DI COMINO 14 COMUNITA' MONTANA | C30: 06.CULTURA | D30: 06.02 ATTIVITÀ CULTURALI | E30: I49E19000790002 | F30: SNAI 2014-2020 - DISTRETTO CULTURALE "SHOWCIARIA" VALLE DI COMINO FESTIVAL: LABORATORIO ARTISTICO | G30: 250,000.00 € | H30: 250,000.00 € | M30: 25,000.00 € | N30: 75,000.00 € | O30: 100,000.00 € | P30: 50,000.00 €
A31: FSCRI_RI_210 | B31: ANIENE X COMUNITÀ MONTANA | C31: 06.CULTURA | D31: 06.01 PATRIMONIO E PAESAGGIO | E31: D92F21000110002 | F31: SNAI 2014-2020 - MUSEO DELLA CIVILTÀ CONTADINA CASTELLO BRANCACCIO | G31: 140,000.00 € | H31: 140,000.00 € | M31: 14,000.00 € | N31: 50,000.00 € | O31: 76,000.00 €
A32: FSCRI_RI_212 | B32: ANIENE X COMUNITÀ MONTANA | C32: 06.CULTURA | D32: 06.01 PATRIMONIO E PAESAGGIO | E32: D67B21000100002 | F32: SNAI 2014-2020 - ALLESTIMENTO MUSEO VILLA DI TRAIANO ARCINAZZO ROMANO | G32: 95,017.04 € | H32: 95,017.04 € | M32: 9,500.00 € | N32: 70,000.00 € | O32: 15,517.04 €
A33: FSCRI_RI_213 | B33: UNIONE DEI COMUNI "VALLE DI COMINO" | C33: 03.COMPETITIVITÀ IMPRESE | D33: 03.03 AGRICOLTURA | E33: B55C19000190002 | F33: SNAI 2014-2020 - BIODISTRETTO VALLE DI COMINO: PUNTI VENDITA PRODOTTI BIO, IGT, ARTIGIANALI | G33: 85,000.00 € | H33: 85,000.00 € | M33: 15,700.00 € | N33: 26,800.00 € | O33: 42,500.00 €
A34: FSCRI_RI_214 | B34: ANIENE X COMUNITÀ MONTANA | C34: 06.CULTURA | D34: 06.01 PATRIMONIO E PAESAGGIO | E34: D22F21000030002 | F34: SNAI 2014-2020 - ATTIVAZIONE CENTRO POLIFUNZIONALE CASTELLO THEODOLI | G34: 190,000.00 € | H34: 190,000.00 € | M34: 19,000.00 € | N34: 100,000.00 € | O34: 71,000.00 €
A35: FSCRI_RI_215 | B35: ANIENE X COMUNITÀ MONTANA | C35: 03.COMPETITIVITÀ IMPRESE | D35: 03.02 TURISMO E OSPITALITÀ | E35: D35I21000030002 | F35: SNAI 2014-2020 - CENTRO ACCOGLIENZA TURISTI A CAMERATA NUOVA | G35: 74,000.00 € | H35: 74,000.00 € | M35: 7,400.00 € | N35: 37,000.00 € | O35: 29,600.00 €
A36: FSCRI_RI_216 | B36: SUBIACO COMUNE | C36: 03.COMPETITIVITÀ IMPRESE | D36: 03.02 TURISMO E OSPITALITÀ | E36: J22B18000370001 | F36: SNAI 2014-2020 - ALLESTIMENTO CAMPO GARA SPORT FLUVIALI SUBIACO | G36: 200,000.00 € | H36: 200,000.00 € | M36: 20,000.00 € | N36: 80,000.00 € | O36: 80,000.00 € | P36: 20,000.00 €
A37: FSCRI_RI_217 | B37: ANIENE X COMUNITÀ MONTANA | C37: 03.COMPETITIVITÀ IMPRESE | D37: 03.02 TURISMO E OSPITALITÀ | E37: D97B21000020002 | F37: SNAI 2014-2020 - STRUTTURE RICETTIVE EXTRALBERGHIERE A FILETTINO | G37: 140,000.00 € | H37: 140,000.00 € | M37: 14,000.00 € | N37: 42,000.00 € | O37: 56,000.00 € | P37: 28,000.00 €
A38: FSCRI_RI_218 | B38: ANIENE X COMUNITÀ MONTANA | C38: 03.COMPETITIVITÀ IMPRESE | D38: 03.02 TURISMO E OSPITALITÀ | E38: D14J21000000002 | F38: SNAI 2014-2020 - RECUPERO AREA A RIDOSSO PONTE SAN TEODORO | G38: 150,000.00 € | H38: 150,000.00 € | M38: 15,000.00 € | N38: 45,000.00 € | O38: 45,000.00 € | P38: 45,000.00 €
A39: FSCRI_RI_219 | B39: UNIONE DEI COMUNI "VALLE DI COMINO" | C39: 03.COMPETITIVITÀ IMPRESE | D39: 03.03 AGRICOLTURA | E39: B19G19000330002 | F39: SNAI 2014-2020 - BIODISTRETTO VALLE DI COMINO: LABORATORIO LAVORAZIONE CEREALI AUTOCTONI | G39: 153,000.00 € | H39: 153,000.00 € | M39: 30,600.00 € | N39: 45,900.00 € | O39: 45,900.00 € | P39: 30,600.00 €
A40: FSCRI_RI_220 | B40: ANIENE X COMUNITÀ MONTANA | C40: 03.COMPETITIVITÀ IMPRESE | D40: 03.02 TURISMO E OSPITALITÀ | E40: D21G21000110002 | F40: SNAI 2014-2020 - SENTIERISTICA DELLA FORESTA LAGO NEL PARCO DEI LUCRETILI | G40: 82,000.00 € | H40: 82,000.00 € | M40: 16,400.00 € | N40: 32,800.00 € | O40: 32,800.00 €
A41: FSCRI_RI_221 | B41: UNIONE DEI COMUNI 'VALLE DI COMINO' | C41: 11.ISTRUZIONE E FORMAZIONE | D41: 11.01 STRUTTURE EDUCATIVE E FORMATIVE | E41: B45C19000270002 | F41: SNAI 2014-2020 - OFFICINE DI RIGENERAZIONE RURALE | G41: 745,000.00 € | H41: 745,000.00 € | M41: 74,500.00 € | N41: 298,000.00 € | O41: 223,500.00 € | P41: 149,000.00 €
A42: FSCRI_RI_222 | B42: ANIENE X COMUNITÀ MONTANA | C42: 03.COMPETITIVITÀ IMPRESE | D42: 03.02 TURISMO E OSPITALITÀ | E42: D14H21000040002 | F42: SNAI 2014-2020 - POTENZIAMENTO ANELLO DEI MONTI RUFFI ROCCA CANTERANO | G42: 152,340.21 € | H42: 152,340.21 € | M42: 15,234.00 € | N42: 45,700.00 € | O42: 60,936.00 € | P42: 30,470.21 €
A43: FSCRI_RI_223 | B43: PETRELLA SALTO COMUNE | C43: 07.TRASPORTI E MOBILITÀ | D43: 07.01 TRASPORTO STRADALE | E43: F27H19003110002 | F43: SNAI 2014-2020 - POTENZIAMENTO ED ADEGUAMENTO DELLA VIABILITÀ D’AREA | G43: 1,330,000.00 € | H43: 1,030,000.00 € | I43: 300,000.00 € | N43: 103,000.00 € | O43: 412,000.00 € | P43: 309,000.00 € | Q43: 206,000.00 €
A44: FSCRI_RI_224 | B44: MONTI SIMBRUINI PARCO NATURALE REGIONALE | C44: 03.COMPETITIVITÀ IMPRESE | D44: 03.02 TURISMO E OSPITALITÀ | E44: G89C20000120002 | F44: SNAI 2014-2020 - UN PARCO PER TUTTI. PERCORSI FACILITATI NEL PARCO DEI SIMBRUINI | G44: 123,500.00 € | H44: 123,500.00 € | M44: 24,700.00 € | N44: 49,400.00 € | O44: 49,400.00 €
A45: FSCRI_RI_225 | B45: ANIENE X COMUNITÀ MONTANA | C45: 03.COMPETITIVITÀ IMPRESE | D45: 03.02 TURISMO E OSPITALITÀ | E45: D38C20000520006 | F45: SNAI 2014-2020 - RETE DEI CAMMINI DEI SIMBRUINI | G45: 828,043.91 € | H45: 828,043.91 € | N45: 82,800.00 € | O45: 198,410.00 € | P45: 281,218.00 € | Q45: 265,615.91 €
A46: FSCRI_RI_227 | B46: PETRELLA SALTO COMUNE | C46: 11.ISTRUZIONE E FORMAZIONE | D46: 11.01 STRUTTURE EDUCATIVE E FORMATIVE | E46: F12B19000020002 | F46: SNAI 2014-2020 - SCUOLA FORMAZIONE "FILIERA FORESTALE E SVILUPPO SOSTENIBILE DEI TERRITORI MONTANI” | G46: 660,000.00 € | H46: 660,000.00 € | M46: 66,000.00 € | N46: 396,000.00 € | O46: 198,000.00 €
A47: FSCRI_RI_229 | B47: MONTI SIMBRUINI PARCO NATURALE REGIONALE | C47: 03.COMPETITIVITÀ IMPRESE | D47: 03.02 TURISMO E OSPITALITÀ | E47: G19C20000040002 | F47: SNAI 2014-2020 - REALIZZAZIONE DELLA FATTORIA DIDATTICA DEL PARCO DEI SIMBRUINI | G47: 100,000.00 € | H47: 100,000.00 € | M47: 10,000.00 € | N47: 50,000.00 € | O47: 40,000.00 €
A48: FSCRI_RI_230 | B48: PETRELLA SALTO COMUNE | C48: 05.AMBIENTE E RISORSE NATURALI | D48: 05.05 NATURA E BIODIVERSITÀ | E48: F65D19000140002 | F48: SNAI 2014-2020 - ACCESSIBILITÀ E FRUIBILITÀ DEI LAGHI | G48: 866,000.00 € | H48: 866,000.00 € | N48: 86,600.00 € | O48: 259,800.00 € | P48: 346,400.00 € | Q48: 173,200.00 €
A49: FSCRI_RI_231 | B49: ANIENE X COMUNITÀ MONTANA | C49: 03.COMPETITIVITÀ IMPRESE | D49: 03.03 AGRICOLTURA | E49: D76C21000000002 | F49: SNAI 2014-2020 - CENTRO PRODUZIONE E COMMERCIALIZZAZIONE PRODOTTI LOCALI A VALLEPIETRA | G49: 165,000.00 € | H49: 165,000.00 € | M49: 16,500.00 € | N49: 49,500.00 € | O49: 49,500.00 € | P49: 49,500.00 €
A50: FSCRI_RI_233 | B50: ANIENE X COMUNITÀ MONTANA | C50: 03.COMPETITIVITÀ IMPRESE | D50: 03.03 AGRICOLTURA | E50: D66C21000000002 | F50: SNAI 2014-2020 - LABORATORIO LAVORAZIONE TARTUFI A CANTERANO | G50: 180,000.00 € | H50: 180,000.00 € | M50: 18,000.00 € | N50: 54,000.00 € | O50: 54,000.00 € | P50: 54,000.00 €
A51: FSCRI_RI_234 | B51: PETRELLA SALTO COMUNE | C51: 03.COMPETITIVITÀ IMPRESE | D51: 03.03 AGRICOLTURA | E51: F54B19000340002 | F51: SNAI 2014-2020 - RICONVERSIONE PATRIMONIO EDILIZIO PUBBLICO: LABORATORI PRODOTTI AGRICOLI BIOLOGICI | G51: 880,000.00 € | H51: 880,000.00 € | N51: 88,000.00 € | O51: 264,000.00 € | P51: 264,000.00 € | Q51: 264,000.00 €
A52: FSCRI_RI_239 | B52: ACQUAPENDENTE COMUNE | C52: 03.COMPETITIVITÀ IMPRESE | D52: 03.02 TURISMO E OSPITALITÀ | E52: F22B20000070002 | F52: SNAI 2014-2020 - GEOPARCO - AREE DI SOSTA PER CAMPER | G52: 785,024.00 € | H52: 635,024.00 € | I52: 150,000.00 € | O52: 300,000.00 € | P52: 204,710.30 € | Q52: 130,313.70 €
A53: FSCRI_RI_29 | B53: REGIONE LAZIO/COMMISSARIO STRAORDINARIO | C53: 07.TRASPORTI E MOBILITÀ | D53: 07.01 TRASPORTO STRADALE | E53: B21B06000520001 | F53: COLLEGAMENTO STRADALE CISTERNA- VALMONTONE E RELATIVE OPERE CONNESSE | G53: 400,000,000.00 € | H53: 100,000,000.00 € | I53: 300,000,000.00 € | K53: 10,000,000.00 € | L53: 13,000,000.00 € | M53: 16,000,000.00 € | N53: 18,000,000.00 € | O53: 18,000,000.00 € | P53: 18,000,000.00 € | Q53: 5,467,164.89 € | R53: 1,532,835.11 €
A54: FSCRI_RI_31 | B54: REGIONE LAZIO | C54: 06.CULTURA | D54: 06.01 PATRIMONIO E PAESAGGIO | E54: F84H23000530001 | F54: RESTAURO, RIFUNZIONALIZZAZIONE E VALORIZZAZIONE DI PALAZZO SILVESTRI RIVALDI | G54: 25,000,000.00 € | H54: 24,996,531.75 € | L54: 15,000,000.00 € | M54: 2,000,000.00 € | N54: 3,000,000.00 € | O54: 3,000,000.00 € | P54: 1,996,531.75 €
A55: FSCRI_RI_78 | B55: ASTRAL S.P.A. | C55: 08.RIQUALIFICAZIONE URBANA | D55: 08.01 EDILIZIA E SPAZI PUBBLICI | E55: C87H23000850007 | F55: URBANIZZAZIONE ROMA CAPITALE LOTTO 1-OG 03 SUBINT B25 MASSIMINA-VIA TOMMASO D'AQUINO | G55: 6,772,866.84 € | H55: 6,772,866.84 € | L55: 2,100,000.00 € | M55: 3,672,866.84 € | N55: 1,000,000.00 €
A56: FSCRI_RI_79 | B56: ASTRAL S.P.A. | C56: 07.TRASPORTI E MOBILITÀ | D56: 07.02 TRASPORTO FERROVIARIO | E56: C87D24000020001 | F56: FERROVIA ROMA-LIDO - NUOVO IMPIANTO DI SEGNALAMENTO DI TERRA CON BLOCCO AUTOMATICO CONTA ASSI E SCMT+ACCM | G56: 30,000,000.00 € | H56: 30,000,000.00 € | M56: 1,000,000.00 € | N56: 8,000,000.00 € | O56: 8,000,000.00 € | P56: 8,000,000.00 € | Q56: 5,000,000.00 €
A57: FSCRI_RI_82 | B57: ASTRAL S.P.A. | C57: 08.RIQUALIFICAZIONE URBANA | D57: 08.01 EDILIZIA E SPAZI PUBBLICI | E57: C87H23000860007 | F57: URBANIZZAZIONE ROMA CAPITALE LOTTO 2-OG06 SUBINT B44 TORRESINA 2-FOGNATURA ACQUE BIANCHE | G57: 800,000.00 € | H57: 800,000.00 € | K57: 800,000.00 €
A58: FSCRI_RI_84 | B58: REGIONE LAZIO | C58: 07.TRASPORTI E MOBILITÀ | D58: 07.02 TRASPORTO FERROVIARIO | E58: F70B18000000003 | F58: FERROVIA ROMA-LIDO - IMPIANTI DI SEGNALAMENTO SCMT A BORDO DEI NUOVI TRENI | G58: 329,649,331.72 € | H58: 14,000,000.00 € | I58: 315,649,331.72 € | K58: 0.00 € | L58: 0.00 € | M58: 0.00 € | N58: 1,000,000.00 € | O58: 3,300,000.00 € | P58: 3,200,000.00 € | Q58: 5,000,000.00 € | R58: 1,500,000.00 €
A59: FSCRI_RI_87 | B59: ASTRAL S.P.A. | C59: 08.RIQUALIFICAZIONE URBANA | D59: 08.01 EDILIZIA E SPAZI PUBBLICI | E59: C87H23000870006 | F59: URBANIZZAZIONE ROMA CAPITALE LOTTO 3-OG08 SUBINT B50 MONTE STALLONARA-COLLEG.VASCA LAMINAZIONE | G59: 300,000.00 € | H59: 300,000.00 € | K59: 300,000.00 €
A60: FSCRI_RI_89 | B60: ASTRAL S.P.A. | C60: 07.TRASPORTI E MOBILITÀ | D60: 07.02 TRASPORTO FERROVIARIO | E60: C81J19000030001 | F60: FERROVIA ROMA-LIDO - NUOVO DEPOSITO - OFFICINA A LIDO CENTRO | G60: 58,000,000.00 € | H60: 58,000,000.00 € | M60: 2,000,000.00 € | N60: 5,000,000.00 € | O60: 10,000,000.00 € | P60: 14,000,000.00 € | Q60: 14,000,000.00 € | R60: 13,000,000.00 €
A61: FSCRI_RI_90 | B61: ASTRAL S.P.A. | C61: 08.RIQUALIFICAZIONE URBANA | D61: 08.01 EDILIZIA E SPAZI PUBBLICI | E61: C87H23000880007 | F61: URBANIZZAZIONE ROMA CAPITALE LOTTO 3-OG08 SUBINT B50 M.STALLONARA-FOSSO E ATTR. VASCA DI LAMINAZIONE | G61: 1,000,000.00 € | H61: 1,000,000.00 € | K61: 500,000.00 € | L61: 500,000.00 €
A62: FSCRI_RI_91 | B62: ASTRAL S.P.A. | C62: 07.TRASPORTI E MOBILITÀ | D62: 07.02 TRASPORTO FERROVIARIO | E62: C87D24000030001 | F62: FERROVIA ROMA-LIDO - DISPOSITIVI DI ARMAMENTO E DI CONTROLLO DELLA STAZIONE DI MAGLIANA | G62: 6,000,000.00 € | H62: 6,000,000.00 € | K62: 600,000.00 € | L62: 3,000,000.00 € | M62: 2,400,000.00 € | N62: 0.00 € | O62: 0.00 € | P62: 0.00 € | Q62: 0.00 € | R62: 0.00 €
A63: FSCRI_RI_92 | B63: ASTRAL S.P.A. | C63: 08.RIQUALIFICAZIONE URBANA | D63: 08.01 EDILIZIA E SPAZI PUBBLICI | E63: C87H23000890007 | F63: URBANIZZAZIONE ROMA CAPITALE LOTTO 3-OG 08 SUBINT B49 PIANSACCOCCIA-SISTEMAZIONE RECAPITO FOSSO | G63: 700,000.00 € | H63: 700,000.00 € | K63: 700,000.00 €
A64: FSCRI_RI_93 | B64: ASTRAL S.P.A. | C64: 08.RIQUALIFICAZIONE URBANA | D64: 08.01 EDILIZIA E SPAZI PUBBLICI | E64: C87H23000900007 | F64: URBANIZZAZIONE ROMA CAPITALE LOTTO 3 - OG 08 SUBINT B48 COLLE FIORITO-VASCA DI LAMINAZIONE EST | G64: 1,200,000.00 € | H64: 1,200,000.00 € | K64: 600,000.00 € | L64: 600,000.00 €
A65: LAZ-9990001 | B65: ANAS SPA | C65: 07.TRASPORTI E MOBILITÀ | D65: 07.01 TRASPORTO STRADALE | E65: F81B16000600001 | F65: Intervento di realizzazione di corsie complanari al GRA tra Via Casilina e lo svincolo di Tor Bella Monaca - I Stralcio | G65: 69,144,200.00 € | H65: 24,444,200.00 € | I65: 44,700,000.00 € | M65: 4,888,840.00 € | N65: 7,333,260.00 € | O65: 7,333,260.00 € | P65: 4,888,840.00 €
A66: LAZ-9990002 | B66: ANAS SPA | C66: 07.TRASPORTI E MOBILITÀ | D66: 07.01 TRASPORTO STRADALE | E66: F84E16001410001 | F66: Intervento di realizzazione di corsie complanari al GRA tra Via Casilina e lo svincolo di Tor Bella Monaca - II Stralcio | G66: 30,846,400.00 € | H66: 30,846,400.00 € | M66: 9,253,920.00 € | N66: 15,423,200.00 € | O66: 6,169,280.00 €
A67: LAZ-9990003 | B67: ASTRAL S.P.A. | C67: 07.TRASPORTI E MOBILITÀ | D67: 07.01 TRASPORTO STRADALE | E67: C97H23001550003 | F67: Interventi di messa in sicurezza e adeguamento normativo SR 630 "Ausonia" | G67: 10,782,712.31 € | H67: 10,782,712.31 € | M67: 1,156,542.46 € | N67: 3,469,627.39 € | O67: 2,156,542.46 € | P67: 2,000,000.00 € | Q67: 2,000,000.00 €
A68: LAZ-9990004 | B68: ASTRAL S.P.A. | C68: 07.TRASPORTI E MOBILITÀ | D68: 07.01 TRASPORTO STRADALE | E68: C87H23001830003 | F68: Opere di manutenzione ordinaria e straordinaria volte alla messa in sicurezza dei ponti e dei cavalcavia SR 213 Flacca nei Comuni di Formia e Gaeta | G68: 16,228,083.38 € | H68: 16,228,083.38 € | M68: 1,114,041.69 € | N68: 3,868,425.01 € | O68: 3,245,616.68 € | P68: 4,000,000.00 € | Q68: 4,000,000.00 €
A69: LAZ-9990005 | B69: ASTRAL S.P.A. | C69: 07.TRASPORTI E MOBILITÀ | D69: 07.01 TRASPORTO STRADALE | E69: C81B17000900002 | F69: Comune di Ciampino – S.P. Via dei Laghi, sottopasso in località Casabianca | G69: 17,000,000.00 € | H69: 8,000,000.00 € | I69: 9,000,000.00 € | M69: 1,000,000.00 € | N69: 2,000,000.00 € | O69: 2,000,000.00 € | P69: 2,000,000.00 € | Q69: 1,000,000.00 €
A70: LAZ-9990006 | B70: ASTRAL S.P.A. | C70: 07.TRASPORTI E MOBILITÀ | D70: 07.01 TRASPORTO STRADALE | E70: C97H23001560003 | F70: Interventi di messa in sicurezza di strade della rete viaria regionale ricadente nella provincia di Rieti: SR314, SP34, SR79, SR657, SR313, SP54 | G70: 4,813,239.06 € | H70: 4,813,239.06 € | M70: 1,406,619.53 € | N70: 1,443,971.72 € | O70: 1,000,000.00 € | P70: 962,647.81 €
A71: LAZ-9990007 | B71: CONSORZIO INDUSTRIALE DEL LAZIO | C71: 03.COMPETITIVITÀ IMPRESE | D71: 03.01 INDUSTRIA E SERVIZI | E71: C21E22000080002 | F71: Aree industriali - Accessi stradali area stabilimento militare Propellenti - Comune di Fontana Liri | G71: 200,000.00 € | H71: 200,000.00 € | L71: 200,000.00 €
A72: LAZ-9990008 | B72: CONSORZIO INDUSTRIALE DEL LAZIO | C72: 03.COMPETITIVITÀ IMPRESE | D72: 03.01 INDUSTRIA E SERVIZI | E72: G57B21000010002 | F72: Aree industriali - Acquedotto consortile–Viabilità-Videosorveglianza-Cisterna di Latina | G72: 2,816,790.80 € | H72: 2,816,790.80 € | L72: 929,540.96 € | M72: 929,540.96 € | N72: 957,708.88 €
A73: LAZ-9990009 | B73: CONSORZIO INDUSTRIALE DEL LAZIO | C73: 03.COMPETITIVITÀ IMPRESE | D73: 03.01 INDUSTRIA E SERVIZI | E73: C81E22000090002 | F73: Aree industriali - Adeguamento strada ASI n 7-Manutenzione e messa in sicurezza-Ferentino | G73: 2,000,000.00 € | H73: 2,000,000.00 € | L73: 1,000,000.00 € | M73: 1,000,000.00 €
A74: LAZ-9990010 | B74: CONSORZIO INDUSTRIALE DEL LAZIO | C74: 03.COMPETITIVITÀ IMPRESE | D74: 03.01 INDUSTRIA E SERVIZI | E74: G34H22000470002 | F74: Aree industriali - Adeguamento viabilità- infrastrutture - Agglomerato industriale di Borgorose | G74: 1,000,000.00 € | H74: 1,000,000.00 € | L74: 500,000.00 € | M74: 500,000.00 €
A75: LAZ-9990011 | B75: CONSORZIO INDUSTRIALE DEL LAZIO | C75: 03.COMPETITIVITÀ IMPRESE | D75: 03.01 INDUSTRIA E SERVIZI | E75: C54H22000370002 | F75: Aree industriali - By Pass viario Morolense Monti Lepini - Comune di Patrica | G75: 2,500,000.00 € | H75: 2,500,000.00 € | L75: 825,000.00 € | M75: 825,000.00 € | N75: 850,000.00 €
A76: LAZ-9990012 | B76: CONSORZIO INDUSTRIALE DEL LAZIO | C76: 03.COMPETITIVITÀ IMPRESE | D76: 03.01 INDUSTRIA E SERVIZI | E76: J42E22000020002 | F76: Aree industriali - Collettore zona industriale Cassino - Depuratore di Villa S. Lucia | G76: 1,169,279.19 € | H76: 1,169,279.19 € | L76: 584,639.60 € | M76: 584,639.59 €
A77: LAZ-9990013 | B77: CONSORZIO INDUSTRIALE DEL LAZIO | C77: 03.COMPETITIVITÀ IMPRESE | D77: 03.01 INDUSTRIA E SERVIZI | E77: G97B21000010002 | F77: Aree industriali - Completamento area artigianale-Impianto depurazione-Videosorveglianza - Sermoneta | G77: 2,603,497.30 € | H77: 2,603,497.30 € | L77: 859,154.11 € | M77: 859,154.11 € | N77: 885,189.08 €
A78: LAZ-9990014 | B78: CONSORZIO INDUSTRIALE DEL LAZIO | C78: 03.COMPETITIVITÀ IMPRESE | D78: 03.01 INDUSTRIA E SERVIZI | E78: C91E22000090002 | F78: Aree industriali - Completamento strada -ex CRDM-Comune di Isola del Liri | G78: 700,000.00 € | H78: 700,000.00 € | L78: 350,000.00 € | M78: 350,000.00 €
A79: LAZ-9990015 | B79: CONSORZIO INDUSTRIALE DEL LAZIO | C79: 03.COMPETITIVITÀ IMPRESE | D79: 03.01 INDUSTRIA E SERVIZI | E79: G89C21000370002 | F79: Aree industriali - Impianto di depurazione - Videosorveglianza - Pontinia loc. Mazzocchio | G79: 708,497.30 € | H79: 708,497.30 € | L79: 354,248.65 € | M79: 354,248.65 €
A80: LAZ-9990016 | B80: CONSORZIO INDUSTRIALE DEL LAZIO | C80: 03.COMPETITIVITÀ IMPRESE | D80: 03.01 INDUSTRIA E SERVIZI | E80: G89C21000360002 | F80: AREE INDUSTRIALI - IMPIANTO DI DEPURAZIONE – POTENZIAMENTO VIDEOSORVEGLIANZA - ROMA CASTEL ROMANO | G80: 1,000,000.00 € | H80: 1,000,000.00 € | L80: 500,000.00 € | M80: 500,000.00 €
A81: LAZ-9990017 | B81: CONSORZIO INDUSTRIALE DEL LAZIO | C81: 03.COMPETITIVITÀ IMPRESE | D81: 03.01 INDUSTRIA E SERVIZI | E81: J31B22000940002 | F81: Aree industriali - Incrocio SR 182 con SP 257 - Comune di San Giovanni Incarico | G81: 436,758.00 € | H81: 436,758.00 € | L81: 218,379.00 € | M81: 218,379.00 €
A82: LAZ-9990018 | B82: CONSORZIO INDUSTRIALE DEL LAZIO | C82: 03.COMPETITIVITÀ IMPRESE | D82: 03.01 INDUSTRIA E SERVIZI | E82: C41E22000130002 | F82: Aree industriali - Lavori di sistemazione Asse Attrezzato di Frosinone | G82: 2,200,000.00 € | H82: 2,200,000.00 € | L82: 726,000.00 € | M82: 726,000.00 € | N82: 748,000.00 €
A83: LAZ-9990019 | B83: CONSORZIO INDUSTRIALE DEL LAZIO | C83: 03.COMPETITIVITÀ IMPRESE | D83: 03.01 INDUSTRIA E SERVIZI | E83: J16G22000270002 | F83: Aree industriali - Manutenzione Straordinaria accessi - Area industriale di Villa Santa Lucia | G83: 123,500.00 € | H83: 123,500.00 € | L83: 123,500.00 €
A84: LAZ-9990020 | B84: CONSORZIO INDUSTRIALE DEL LAZIO | C84: 03.COMPETITIVITÀ IMPRESE | D84: 03.01 INDUSTRIA E SERVIZI | E84: G49D22000080002 | F84: Aree industriali - Manutenzione straordinaria strade - Agglomerato Consortile Rieti-Cittaducale | G84: 3,425,140.00 € | H84: 3,425,140.00 € | L84: 1,130,296.20 € | M84: 1,130,296.20 € | N84: 1,164,547.60 €
A85: LAZ-9990021 | B85: CONSORZIO INDUSTRIALE DEL LAZIO | C85: 03.COMPETITIVITÀ IMPRESE | D85: 03.01 INDUSTRIA E SERVIZI | E85: J97H22001650002 | F85: Aree industriali - Messa in sicurezza cavalcavia SR 6- FCA - Comune di Piedimonte San Germano | G85: 243,384.00 € | H85: 243,384.00 € | L85: 200,000.00 € | M85: 43,384.00 €
A86: LAZ-9990022 | B86: CONSORZIO INDUSTRIALE DEL LAZIO | C86: 03.COMPETITIVITÀ IMPRESE | D86: 03.01 INDUSTRIA E SERVIZI | E86: J67H22001450002 | F86: Aree industriali - Messa in sicurezza sede stradale - Area industriale di Belmonte Castello | G86: 145,000.00 € | H86: 145,000.00 € | L86: 145,000.00 €
A87: LAZ-9990023 | B87: CONSORZIO INDUSTRIALE DEL LAZIO | C87: 03.COMPETITIVITÀ IMPRESE | D87: 03.01 INDUSTRIA E SERVIZI | E87: J26G22000290002 | F87: Aree industriali - Messa in sicurezza sede stradale - Area industriale di Casalvieri | G87: 156,913.00 € | H87: 156,913.00 € | L87: 156,913.00 €
A88: LAZ-9990024 | B88: CONSORZIO INDUSTRIALE DEL LAZIO | C88: 03.COMPETITIVITÀ IMPRESE | D88: 03.01 INDUSTRIA E SERVIZI | E88: J26G22000300002 | F88: Aree industriali - Messa in sicurezza sede stradale - Area industriale di Colfelice | G88: 250,000.00 € | H88: 250,000.00 € | L88: 125,000.00 € | M88: 125,000.00 €
A89: LAZ-9990025 | B89: CONSORZIO INDUSTRIALE DEL LAZIO | C89: 03.COMPETITIVITÀ IMPRESE | D89: 03.01 INDUSTRIA E SERVIZI | E89: J96G22000260002 | F89: Aree industriali - Messa in sicurezza sede stradale - Area industriale di San Vittore nel Lazio | G89: 130,290.00 € | H89: 130,290.00 € | L89: 130,290.00 €
A90: LAZ-9990026 | B90: CONSORZIO INDUSTRIALE DEL LAZIO | C90: 03.COMPETITIVITÀ IMPRESE | D90: 03.01 INDUSTRIA E SERVIZI | E90: G85F21001620002 | F90: Aree industriali - Messa in sicurezza sede stradale - Roma loc. Santa Palomba | G90: 1,000,000.00 € | H90: 1,000,000.00 € | L90: 500,000.00 € | M90: 500,000.00 €
A91: LAZ-9990027 | B91: CONSORZIO INDUSTRIALE DEL LAZIO | C91: 03.COMPETITIVITÀ IMPRESE | D91: 03.01 INDUSTRIA E SERVIZI | E91: J66G22000260002 | F91: Aree industriali - Messa in sicurezza sede stradale - Zona commerciale artigianale Badia di Esperia | G91: 128,500.00 € | H91: 128,500.00 € | L91: 128,500.00 €
A92: LAZ-9990028 | B92: CONSORZIO INDUSTRIALE DEL LAZIO | C92: 03.COMPETITIVITÀ IMPRESE | D92: 03.01 INDUSTRIA E SERVIZI | E92: C91E22000080002 | F92: Aree industriali - Messa in sicurezza sede stradale – Via Caragno - Comune di Ceprano | G92: 1,000,000.00 € | H92: 1,000,000.00 € | L92: 500,000.00 € | M92: 500,000.00 €
A93: LAZ-9990029 | B93: CONSORZIO INDUSTRIALE DEL LAZIO | C93: 03.COMPETITIVITÀ IMPRESE | D93: 03.01 INDUSTRIA E SERVIZI | E93: C64H22000450002 | F93: Aree industriali - Messa in sicurezza svincolo – SR 6 Via Casilina/Località Meringo - Comune di Ripi | G93: 600,000.00 € | H93: 600,000.00 € | L93: 300,000.00 € | M93: 300,000.00 €
A94: LAZ-9990030 | B94: CONSORZIO INDUSTRIALE DEL LAZIO | C94: 03.COMPETITIVITÀ IMPRESE | D94: 03.01 INDUSTRIA E SERVIZI | E94: E81B21005930005 | F94: Aree industriali - Opere completamento - Agglomerato Industriale Castagneto nel Comune di Formia | G94: 3,150,000.00 € | H94: 3,150,000.00 € | L94: 1,039,500.00 € | M94: 1,039,500.00 € | N94: 1,071,000.00 €
A95: LAZ-9990031 | B95: CONSORZIO INDUSTRIALE DEL LAZIO | C95: 03.COMPETITIVITÀ IMPRESE | D95: 03.01 INDUSTRIA E SERVIZI | E95: E51B21004520005 | F95: Aree industriali - Opere completamento - Agglomerato Industriale di Penitro nel Comune di Minturno | G95: 1,500,000.00 € | H95: 1,500,000.00 € | L95: 750,000.00 € | M95: 750,000.00 €
A96: LAZ-9990032 | B96: CONSORZIO INDUSTRIALE DEL LAZIO | C96: 03.COMPETITIVITÀ IMPRESE | D96: 03.01 INDUSTRIA E SERVIZI | E96: J21B22000930002 | F96: Aree industriali - Opere di Urbanizzazione - Strada di accesso area ind.le San Giorgio a Liri | G96: 300,000.00 € | H96: 300,000.00 € | L96: 150,000.00 € | M96: 150,000.00 €
A97: LAZ-9990033 | B97: CONSORZIO INDUSTRIALE DEL LAZIO | C97: 03.COMPETITIVITÀ IMPRESE | D97: 03.01 INDUSTRIA E SERVIZI | E97: G54H22000240002 | F97: AREE INDUSTRIALI - OPERE DI URBANIZZAZIONE – AGGLOMERATO INDUSTRIALE FARA SABINA - VIA DEI CAVALLI | G97: 902,121.55 € | H97: 902,121.55 € | L97: 451,060.78 € | M97: 451,060.77 €
A98: LAZ-9990034 | B98: CONSORZIO INDUSTRIALE DEL LAZIO | C98: 03.COMPETITIVITÀ IMPRESE | D98: 03.01 INDUSTRIA E SERVIZI | E98: G34H22000460002 | F98: Aree industriali - Opere di Urbanizzazione Fara in Sabina - Montelibretti | G98: 548,323.80 € | H98: 548,323.80 € | L98: 274,161.90 € | M98: 274,161.90 €
A99: LAZ-9990035 | B99: CONSORZIO INDUSTRIALE DEL LAZIO | C99: 03.COMPETITIVITÀ IMPRESE | D99: 03.01 INDUSTRIA E SERVIZI | E99: C64H22000460002 | F99: Aree industriali - Parcheggio di scambio tra la SP 278 e l’uscita della SR 214 - Comune di Veroli | G99: 1,000,000.00 € | H99: 1,000,000.00 € | L99: 500,000.00 € | M99: 500,000.00 €
A100: LAZ-9990036 | B100: CONSORZIO INDUSTRIALE DEL LAZIO | C100: 03.COMPETITIVITÀ IMPRESE | D100: 03.01 INDUSTRIA E SERVIZI | E100: G17B21000000002 | F100: AREE INDUSTRIALI - PUBBLICA ILLUMINAZIONE- FOTOVOLTAICO-VIDEOSORVEGLIANZA-AREA ARTIGIANALE APRILIA | G100: 613,270.90 € | H100: 613,270.90 € | L100: 306,635.45 € | M100: 306,635.45 €
A101: LAZ-9990037 | B101: CONSORZIO INDUSTRIALE DEL LAZIO | C101: 03.COMPETITIVITÀ IMPRESE | D101: 03.01 INDUSTRIA E SERVIZI | E101: C44H22000390002 | F101: Aree industriali - Realizzazione di strada – Via Ferrazza - Comune di Sora | G101: 1,000,000.00 € | H101: 1,000,000.00 € | L101: 500,000.00 € | M101: 500,000.00 €
A102: LAZ-9990038 | B102: CONSORZIO INDUSTRIALE DEL LAZIO | C102: 03.COMPETITIVITÀ IMPRESE | D102: 03.01 INDUSTRIA E SERVIZI | E102: C84H22000390002 | F102: Aree industriali - Realizzazione Rete Fognaria Colle San Paolo - Comune di Ceccano | G102: 3,005,514.17 € | H102: 3,005,514.17 € | L102: 991,819.68 € | M102: 991,819.68 € | N102: 1,021,874.81 €
A103: LAZ-9990039 | B103: CONSORZIO INDUSTRIALE DEL LAZIO | C103: 03.COMPETITIVITÀ IMPRESE | D103: 03.01 INDUSTRIA E SERVIZI | E103: C24H22000250002 | F103: Aree industriali - Realizzazione Rotatoria Ponte sul Sacco - SP 122 - Comune di Morolo | G103: 1,000,000.00 € | H103: 1,000,000.00 € | L103: 500,000.00 € | M103: 500,000.00 €
A104: LAZ-9990040 | B104: CONSORZIO INDUSTRIALE DEL LAZIO | C104: 03.COMPETITIVITÀ IMPRESE | D104: 03.01 INDUSTRIA E SERVIZI | E104: C54H22000360002 | F104: Aree industriali - Realizzazione Rotatoria SR 214/SR 155 - Comune di Alatri | G104: 800,000.00 € | H104: 800,000.00 € | K104: 0.00 € | L104: 400,000.00 € | M104: 400,000.00 € | N104: 0.00 € | O104: 0.00 € | P104: 0.00 € | Q104: 0.00 € | R104: 0.00 €
A105: LAZ-9990041 | B105: CONSORZIO INDUSTRIALE DEL LAZIO | C105: 03.COMPETITIVITÀ IMPRESE | D105: 03.01 INDUSTRIA E SERVIZI | E105: J61B22001830002 | F105: Aree industriali - Rotatoria Area industriale di Sant’Apollinare | G105: 715,500.00 € | H105: 715,500.00 € | K105: 0.00 € | L105: 357,750.00 € | M105: 357,750.00 € | N105: 0.00 € | O105: 0.00 € | P105: 0.00 € | Q105: 0.00 € | R105: 0.00 €
A106: LAZ-9990043 | B106: CONSORZIO INDUSTRIALE DEL LAZIO | C106: 03.COMPETITIVITÀ IMPRESE | D106: 03.01 INDUSTRIA E SERVIZI | E106: J17H22001110002 | F106: Aree industriali - Strada accesso Depuratore - Piedimonte San Germano-Cassino- Villa Santa Lucia | G106: 824,602.96 € | H106: 824,602.96 € | K106: 0.00 € | L106: 412,301.48 € | M106: 412,301.48 € | N106: 0.00 € | O106: 0.00 € | P106: 0.00 € | Q106: 0.00 € | R106: 0.00 €
A107: LAZ-9990045 | B107: CONSORZIO INDUSTRIALE DEL LAZIO | C107: 03.COMPETITIVITÀ IMPRESE | D107: 03.01 INDUSTRIA E SERVIZI | E107: G24H21000050002 | F107: Aree industriali - Videosorveglianza - Latina | G107: 100,000.00 € | H107: 100,000.00 € | L107: 100,000.00 €
A108: 1 | B108: INTERPORTO CENTRO ITALIA ORTE SPA | C108: 07.TRASPORTI E MOBILITÀ | D108: 07.06 LOGISTICA | E108: J91B21000900008 | F108: Opere di completamento dell'Interporto di Orte - Fase 1 | G108: 11,542,641.55 € | H108: 7,453,183.40 € | I108: 4,089,458.15 € | L108: 2,000,000.00 € | M108: 2,753,183.40 € | N108: 2,700,000.00 €
A109: 3 | B109: CONSORZIO DI BONIFICA LITORALE NORD | C109: 05.AMBIENTE E RISORSE NATURALI | D109: 05.02 RISORSE IDRICHE | E109: G14D15000010001 | F109: Lavori di ristrutturazione e ammodernamento impianto irriguo di Maccarese in Agro di Fiumicino - Completamento - Estendimento Settore 2 | G109: 6,310,000.00 € | H109: 6,310,000.00 € | K109: 866,831.06 € | L109: 500,000.00 € | M109: 1,800,000.00 € | N109: 2,143,168.94 € | O109: 1,000,000.00 €
A110: 4 | B110: COMUNE DI SEZZE | C110: 06.CULTURA | D110: 06.02 ATTIVITA' CULTURALI | E110: C14J24000540001 | F110: Completamento del Teatro Sacro Italiano nel Comune di Sezze | G110: 2,000,000.00 € | H110: 2,000,000.00 € | N110: 400,000.00 € | O110: 400,000.00 € | P110: 400,000.00 € | Q110: 400,000.00 € | R110: 400,000.00 €
A111: 6 | B111: SPORT E SALUTE SPA | C111: 10.SOCIALE E SALUTE | D111: 10.01 STRUTTURE SOCIALI | E111: J72B24001990001 | F111: Interventi sulla tensostruttura comunale ed aree accessore ad Amaseno | G111: =SUM(H111:H111) -> 1,000,000.00 € | H111: 1,000,000.00 € | M111: 100,000.00 € | N111: 400,000.00 € | O111: 400,000.00 € | P111: 100,000.00 €
A112: 7 | B112: SPORT E SALUTE SPA | C112: 10.SOCIALE E SALUTE | D112: 10.01 STRUTTURE SOCIALI | E112: J64J24000630001 | F112: Lavori di completamento ed efficientamento energetico del complesso natatorio comunale sito in località S. Giovanni a Civita Castellana | G112: =SUM(H112:H112) -> 1,000,000.00 € | H112: 1,000,000.00 € | M112: 100,000.00 € | N112: 400,000.00 € | O112: 400,000.00 € | P112: 100,000.00 €
A113: 8 | B113: SPORT E SALUTE SPA | C113: 10.SOCIALE E SALUTE | D113: 10.01 STRUTTURE SOCIALI | E113: J14J24000300001 | F113: Completamento, efficientamento e manutenzione straordinaria dell’impianto sportivo comunale di via Gramsci nel Comune di Itri | G113: =SUM(H113:H113) -> 1,000,000.00 € | H113: 1,000,000.00 € | M113: 100,000.00 € | N113: 400,000.00 € | O113: 400,000.00 € | P113: 100,000.00 €
A114: 9 | B114: SPORT E SALUTE SPA | C114: 10.SOCIALE E SALUTE | D114: 10.01 STRUTTURE SOCIALI | E114: J12H24001190001 | F114: Lavori di Completamento e Manutenzione Straordinaria dello Stadio di atletica leggera “R. Guidobaldi” a Rieti | G114: =SUM(H114:H114) -> 1,000,000.00 € | H114: 1,000,000.00 € | M114: 100,000.00 € | N114: 400,000.00 € | O114: 400,000.00 € | P114: 100,000.00 €
A115: 10 | B115: SPORT E SALUTE SPA | C115: 10.SOCIALE E SALUTE | D115: 10.01 STRUTTURE SOCIALI | E115: J92H24001270001 | F115: Lavori di manutenzione straordinaria presso l’impianto sportivo comunale Roberto Pera a San Cesareo | G115: 1,000,000.00 € | H115: 1,000,000.00 € | M115: 100,000.00 € | N115: 400,000.00 € | O115: 400,000.00 € | P115: 100,000.00 €
A116: 11 | B116: REGIONE LAZIO | C116: 08.RIQUALIFICAZIONE URBANA | D116: 08.01 EDILIZIA E SPAZI PUBBLICI | E116: F85H24000130001 | F116: Sistemazione del Parco della Pace nella sede del Consiglio Regionale con annessa cappella | G116: 750,000.00 € | H116: 750,000.00 € | K116: 100,000.00 € | L116: 400,000.00 € | M116: 250,000.00 €
A117: 12 | B117: ASTRAL SPA | C117: 07.TRASPORTI E MOBILITÀ | D117: 07.05 MOBILITÀ URBANA | E117: C81G24000100001 | F117: Corridoio Gaeta-Formia (ex Littorina) | G117: 30,671,190.65 € | H117: 20,671,190.65 € | I117: 10,000,000.00 € | M117: 500,000.00 € | N117: 1,983,326.05 € | O117: 4,685,427.72 € | P117: 4,302,436.88 € | Q117: 4,600,000.00 € | R117: 4,600,000.00 €
A118: 13 | B118: Comune di Contigliano | C118: 10.SOCIALE E SALUTE | D118: 10.01 STRUTTURE SOCIALI | E118: C37H23001570003 | F118: Interventi strutturali finalizzati alla conversione a Casa della Comunità di Palazzo Cavalletti | G118: 750,000.00 € | H118: 750,000.00 € | M118: 160,000.00 € | N118: 310,000.00 € | O118: 280,000.00 €
A119: 14 | B119: CITTA' METROPOLITANA DI ROMA CAPITALE | C119: 07.TRASPORTI E MOBILITÀ | D119: 07.05 MOBILITÀ URBANA | E119: F36G15001230005 | F119: Lavori di completamento del nodo di Ponte Lucano | G119: 12,100,000.00 € | H119: 8,100,000.00 € | I119: 4,000,000.00 € | N119: 620,000.00 € | O119: 1,500,000.00 € | P119: 2,000,000.00 € | Q119: 2,000,000.00 € | R119: 1,980,000.00 €
A120: 15 | B120: Comune di Velletri | C120: 06.CULTURA | D120: 06.01 PATRIMONIO E PAESAGGIO | E120: I17B24000060001 | F120: Ristrutturazione dell'ex Mattatoio comunale Velletri destinato ad attività culturali, sociali e di formazione | G120: 1,830,000.00 € | H120: 1,830,000.00 € | M120: 100,000.00 € | N120: 480,000.00 € | O120: 600,000.00 € | P120: 650,000.00 €
A121: 16 | B121: Comune di Anzio | C121: 07.TRASPORTI E MOBILITÀ | D121: 07.03 TRASPORTO MARITTIMO | E121: F51G25000020002 | F121: Dragaggio del canale di ingresso al porto di Anzio | G121: 1,000,000.00 € | H121: 1,000,000.00 € | L121: 100,000.00 € | M121: 900,000.00 €
A122: 17 | B122: Comune di Fontenuova | C122: 07.TRASPORTI E MOBILITÀ | D122: 07.05 MOBILITÀ URBANA | E122: D31B20001520007 | F122: Realizzazione di un nuovo tratto di pista ciclopedonale a completamento del collegamento tra le frazioni di Tor Lupara e Santa Lucia | G122: 1,500,000.00 € | H122: 1,500,000.00 € | M122: 100,000.00 € | N122: 400,000.00 € | O122: 600,000.00 € | P122: 400,000.00 €
A123: 18 | B123: ASTRAL SPA | C123: 07.TRASPORTI E MOBILITÀ | D123: 07.02 TRASPORTO FERROVIARIO | E123: I89B00000000003 | F123: Ex Concesse RV (Adeguamento prezzi) - Raddoppio Stazione piazzale Flaminio (*) | G123: 100,126,688.62 € | H123: 673,098.70 € | I123: 99,453,589.92 € | N123: 373,098.70 € | O123: 300,000.00 €
A124: 19 | B124: Comune di San Polo dei Cavalieri | C124: 07.TRASPORTI E MOBILITÀ | D124: 07.06 LOGISTICA | E124: G45I23000020001 | F124: Realizzazione del parcheggio multipiano del Comune di San Polo dei Cavalieri | G124: 1,200,000.00 € | H124: 500,000.00 € | I124: 700,000.00 € | M124: 190,000.00 € | N124: 190,000.00 € | O124: 120,000.00 €
A125: 20 | B125: CONSORZIO DI BONIFICA ETRURIA MERIDIONALE E SABINA | C125: 05.AMBIENTE E RISORSE NATURALI | D125: 05.01 RISCHI E ADATTAMENTO CLIMATICO | E125: C39H09000160002 | F125: Sistemazione idraulica del fiume Salto in località Grotti di Borgorose (*) | G125: 995,739.49 € | H125: 306,901.30 € | I125: 688,838.19 € | M125: 50,000.00 € | N125: 206,901.30 € | O125: 50,000.00 €
A126: 21 | B126: Regione Lazio | C126: 05.AMBIENTE E RISORSE NATURALI | D126: 05.02 Risorse Idriche | E126: F73J08000040001 | F126: Opere di collettamento e depurazione relativamente ai Poli di Civita Castellana, Sutri e Vignanello (I Lotto) - Adeguamento prezzi | G126: 27,857,000.00 € | H126: 8,000,000.00 € | I126: 19,857,000.00 € | K126: 200,000.00 € | L126: 960,000.00 € | M126: 1,000,000.00 € | N126: 1,300,000.00 € | O126: 1,300,000.00 € | P126: 1,300,000.00 € | Q126: 1,300,000.00 € | R126: 640,000.00 €
A127: 22 | B127: Regione Lazio | C127: 05.AMBIENTE E RISORSE NATURALI | D127: 05.01 RISCHI E ADATTAMENTO CLIMATICO | E127: F85D12000040002 | F127: Fosso di Pratolungo - Ripristino dell’officiosità idraulica e opere per l’accumulo e la laminazione delle piene - II lotto | G127: 14,581,898.45 € | H127: 6,267,164.89 € | I127: 8,314,733.56 € | M127: 340,000.00 € | N127: 1,040,000.00 € | O127: 1,340,000.00 € | P127: 1,340,000.00 € | Q127: 1,340,000.00 € | R127: 867,164.89 €
F128: Totali | G128: =SUM(G4:G127) -> 1,956,446,170.76 | H128: =SUM(H4:H127) -> 815,077,460.56 | I128: =SUM(I4:I127) -> 1,141,365,241.95 € | K128: =SUM(K4:K127) -> 17,066,831.06 € | L128: 71,081,470.30 € | M128: 132,158,006.43 € | N128: 178,493,699.57 € | O128: 139,813,803.75 € | P128: 123,643,354.95 € | Q128: 98,300,294.50 € | R128: 54,520,000.00 €
E129: * | F129: Il COFINANZIAMENTO dell'intervento comprende la quota FSC erogata nell'Anticipazione di cui alla Delibera CIPESS n.79/2021 (allegato A2)
